Workbook

Sheet FeとAl定量
A1: 実験日 | B1: 2030年6月31日
A2: 実験者 | B2: 宇羽野宗良
A3: 課題 | B3: 吸光度
B4: スペクトルの波長較正、データの正規・平準化
B7: 鉄の定量
B8: 検量線
B9: 溶液中鉄濃度 c と510 nmにおける吸光度（イオン交換水を参照）
B10: （700 nmの吸光度が0になるように補正）
B11: c/mg L-1 | C11: A(510) | D11: A(510)*
B12: 0 | C12: 0.03 | D12: =C12-C$12 -> 0
B13: 1 | C13: 0.22 | D13: =C13-C$12 -> 0.19
B14: 2 | C14: 0.42 | D14: 0.39
B15: 3 | C15: 0.57 | D15: 0.54
B16: 4 | C16: 0.76 | D16: 0.73
D17: A*はブランクを補正した値
B19: A(510)* = | C19: =SUMPRODUCT(B12:B16,D12:D16)/SUMSQ(B12:B16) -> 0.1836666667 | D19: c / mg L-1
C20: [c = 0でA* = 0になるように最小２乗法を適用]
B22: 温泉水中の鉄
B23: 温泉水のpH
B24: 2 | C24: 簡易pH計による
B26: 温泉水1.0 mLを取ってフェナントロリン等を加えて10 mLにした吸光度（イオン交換水を参照）
B27: A(510) | C27: 0.55
B28: A(510)* | C28: =C27-C12 -> 0.52 | D28: ブランク補正
B30: 元の温泉水中の鉄濃度
B31: =C28/C19*(10/1) -> 28.31215971 | C31: mg/L
B34: アルミニウムの定量
B35: 1.0 mLの試料の酢酸エチル抽出液の385 nmでの吸光度（酢酸エチルを参照）
B36: （700 nmの吸光度が0になるように補正）
C37: A(385)
B38: ブランク | C38: 0.01300000024
B39: Al標準液 | C39: 0.6160000232
B40: 温泉水* | C40: 0.6959999893
C42: *温泉水は10倍希釈して鉄を測った残液
B44: Al標準液濃度
B45: 10 | C45: mg/L
B47: 元の温泉水中のAl 濃度
B48: =(C40-C38)/(C39-C38)*B45*10 -> 113.2669922 | C48: mg/L

Sheet 吸光度データ
A1: 吸光度
A2: 700 nmで0になるように補正済
A3: Fe 定量 | B3: 補正値 | C3: =-元データ!D355 -> 0 | D3: =-元データ!E355 -> 0.01 | E3: =-元データ!F355 -> 0.01 | F3: =-元データ!G355 -> 0 | G3: =-元データ!H355 -> 0 | H3: =-元データ!I355 -> 0 | I3: Al定量 | J3: 補正値 | K3: =-元データ!L355 -> 0 | L3: =-元データ!M355 -> 0 | M3: =-元データ!N355 -> 0
B4: 波長/nm | C4: Fe00 | D4: Fe01 | E4: Fe02 | F4: Fe03 | G4: Fe04 | H4: 試料 | J4: 波長/nm | K4: blanc | L4: std | M4: 試料
B5: 350 | C5: =元データ!D5+C$3 -> 0.205 | D5: =元データ!E5+D$3 -> 0.14 | E5: =元データ!F5+E$3 -> 0.11 | F5: =元データ!G5+F$3 -> 0.06 | G5: =元データ!H5+G$3 -> 0.09 | H5: =元データ!I5+H$3 -> 0.09 | J5: 350 | K5: =元データ!L5+K$3 -> 1.647999894 | L5: =元データ!M5+L$3 -> 1.748000076 | M5: =元データ!N5+M$3 -> 1.741999771
B6: 351 | C6: =元データ!D6+C$3 -> 0.2 | D6: =元データ!E6+D$3 -> 0.138 | E6: =元データ!F6+E$3 -> 0.11 | F6: =元データ!G6+F$3 -> 0.06 | G6: =元データ!H6+G$3 -> 0.088 | H6: =元データ!I6+H$3 -> 0.088 | J6: 351 | K6: =元データ!L6+K$3 -> 1.642000096 | L6: =元データ!M6+L$3 -> 1.747999888 | M6: =元データ!N6+M$3 -> 1.759999855
B7: 352 | C7: =元データ!D7+C$3 -> 0.192 | D7: =元データ!E7+D$3 -> 0.13 | E7: =元データ!F7+E$3 -> 0.108 | F7: =元データ!G7+F$3 -> 0.06 | G7: =元データ!H7+G$3 -> 0.08 | H7: =元データ!I7+H$3 -> 0.08 | J7: 352 | K7: =元データ!L7+K$3 -> 1.605999962 | L7: =元データ!M7+L$3 -> 1.750999683 | M7: =元データ!N7+M$3 -> 1.758000058
B8: 353 | C8: =元データ!D8+C$3 -> 0.182 | D8: =元データ!E8+D$3 -> 0.124 | E8: =元データ!F8+E$3 -> 0.1 | F8: =元データ!G8+F$3 -> 0.052 | G8: =元データ!H8+G$3 -> 0.08 | H8: =元データ!I8+H$3 -> 0.08 | J8: 353 | K8: =元データ!L8+K$3 -> 1.551999829 | L8: =元データ!M8+L$3 -> 1.710000233 | M8: =元データ!N8+M$3 -> 1.709000309
B9: 354 | C9: =元データ!D9+C$3 -> 0.1725 | D9: =元データ!E9+D$3 -> 0.12 | E9: =元データ!F9+E$3 -> 0.0975 | F9: =元データ!G9+F$3 -> 0.05 | G9: =元データ!H9+G$3 -> 0.08 | H9: =元データ!I9+H$3 -> 0.07 | J9: 354 | K9: =元データ!L9+K$3 -> 1.43300008 | L9: =元データ!M9+L$3 -> 1.619000177 | M9: =元データ!N9+M$3 -> 1.624999993
B10: 355 | C10: =元データ!D10+C$3 -> 0.164 | D10: =元データ!E10+D$3 -> 0.11 | E10: =元データ!F10+E$3 -> 0.09 | F10: =元データ!G10+F$3 -> 0.05 | G10: =元データ!H10+G$3 -> 0.08 | H10: =元データ!I10+H$3 -> 0.07 | J10: 355 | K10: =元データ!L10+K$3 -> 1.302000023 | L10: =元データ!M10+L$3 -> 1.538000195 | M10: =元データ!N10+M$3 -> 1.570000085
B11: 356 | C11: =元データ!D11+C$3 -> 0.154 | D11: =元データ!E11+D$3 -> 0.106 | E11: =元データ!F11+E$3 -> 0.086 | F11: =元データ!G11+F$3 -> 0.044 | G11: =元データ!H11+G$3 -> 0.08 | H11: =元データ!I11+H$3 -> 0.062 | J11: 356 | K11: =元データ!L11+K$3 -> 1.151999929 | L11: =元データ!M11+L$3 -> 1.439000119 | M11: =元データ!N11+M$3 -> 1.484000006
B12: 357 | C12: =元データ!D12+C$3 -> 0.144 | D12: =元データ!E12+D$3 -> 0.1 | E12: =元データ!F12+E$3 -> 0.08 | F12: =元データ!G12+F$3 -> 0.04 | G12: =元データ!H12+G$3 -> 0.074 | H12: =元データ!I12+H$3 -> 0.06 | J12: 357 | K12: =元データ!L12+K$3 -> 1.021000044 | L12: =元データ!M12+L$3 -> 1.341999929 | M12: =元データ!N12+M$3 -> 1.396999984
B13: 358 | C13: =元データ!D13+C$3 -> 0.1325 | D13: =元データ!E13+D$3 -> 0.09 | E13: =元データ!F13+E$3 -> 0.075 | F13: =元データ!G13+F$3 -> 0.04 | G13: =元データ!H13+G$3 -> 0.07 | H13: =元データ!I13+H$3 -> 0.055 | J13: 358 | K13: =元データ!L13+K$3 -> 0.8640000273 | L13: =元データ!M13+L$3 -> 1.224999958 | M13: =元データ!N13+M$3 -> 1.294000046
B14: 359 | C14: =元データ!D14+C$3 -> 0.124 | D14: =元データ!E14+D$3 -> 0.086 | E14: =元データ!F14+E$3 -> 0.07 | F14: =元データ!G14+F$3 -> 0.04 | G14: =元データ!H14+G$3 -> 0.07 | H14: =元データ!I14+H$3 -> 0.05 | J14: 359 | K14: =元データ!L14+K$3 -> 0.7179999967 | L14: =元データ!M14+L$3 -> 1.11100003 | M14: =元データ!N14+M$3 -> 1.179999979
B15: 360 | C15: =元データ!D15+C$3 -> 0.116 | D15: =元データ!E15+D$3 -> 0.08 | E15: =元データ!F15+E$3 -> 0.068 | F15: =元データ!G15+F$3 -> 0.032 | G15: =元データ!H15+G$3 -> 0.07 | H15: =元データ!I15+H$3 -> 0.05 | J15: 360 | K15: =元データ!L15+K$3 -> 0.5910000006 | L15: =元データ!M15+L$3 -> 1.002999948 | M15: =元データ!N15+M$3 -> 1.071999999
B16: 361 | C16: =元データ!D16+C$3 -> 0.106 | D16: =元データ!E16+D$3 -> 0.074 | E16: =元データ!F16+E$3 -> 0.06 | F16: =元データ!G16+F$3 -> 0.03 | G16: =元データ!H16+G$3 -> 0.07 | H16: =元データ!I16+H$3 -> 0.044 | J16: 361 | K16: =元データ!L16+K$3 -> 0.4840000158 | L16: =元データ!M16+L$3 -> 0.9120000137 | M16: =元データ!N16+M$3 -> 0.9869999929
B17: 362 | C17: =元データ!D17+C$3 -> 0.1 | D17: =元データ!E17+D$3 -> 0.07 | E17: =元データ!F17+E$3 -> 0.06 | F17: =元データ!G17+F$3 -> 0.03 | G17: =元データ!H17+G$3 -> 0.07 | H17: =元データ!I17+H$3 -> 0.04 | J17: 362 | K17: =元データ!L17+K$3 -> 0.407000015 | L17: =元データ!M17+L$3 -> 0.8530000085 | M17: =元データ!N17+M$3 -> 0.9310000204
B18: 363 | C18: =元データ!D18+C$3 -> 0.092 | D18: =元データ!E18+D$3 -> 0.07 | E18: =元データ!F18+E$3 -> 0.06 | F18: =元データ!G18+F$3 -> 0.03 | G18: =元データ!H18+G$3 -> 0.07 | H18: =元データ!I18+H$3 -> 0.04 | J18: 363 | K18: =元データ!L18+K$3 -> 0.3270000098 | L18: =元データ!M18+L$3 -> 0.7920000336 | M18: =元データ!N18+M$3 -> 0.8669999998
B19: 364 | C19: =元データ!D19+C$3 -> 0.088 | D19: =元データ!E19+D$3 -> 0.062 | E19: =元データ!F19+E$3 -> 0.054 | F19: =元データ!G19+F$3 -> 0.03 | G19: =元データ!H19+G$3 -> 0.07 | H19: =元データ!I19+H$3 -> 0.04 | J19: 364 | K19: =元データ!L19+K$3 -> 0.2629999984 | L19: =元データ!M19+L$3 -> 0.7430000281 | M19: =元データ!N19+M$3 -> 0.8180000247
B20: 365 | C20: =元データ!D20+C$3 -> 0.08 | D20: =元データ!E20+D$3 -> 0.06 | E20: =元データ!F20+E$3 -> 0.05 | F20: =元データ!G20+F$3 -> 0.03 | G20: =元データ!H20+G$3 -> 0.072 | H20: =元データ!I20+H$3 -> 0.04 | J20: 365 | K20: =元データ!L20+K$3 -> 0.2110000081 | L20: =元データ!M20+L$3 -> 0.7040000175 | M20: =元データ!N20+M$3 -> 0.7819999769
B21: 366 | C21: =元データ!D21+C$3 -> 0.078 | D21: =元データ!E21+D$3 -> 0.06 | E21: =元データ!F21+E$3 -> 0.05 | F21: =元データ!G21+F$3 -> 0.03 | G21: =元データ!H21+G$3 -> 0.08 | H21: =元データ!I21+H$3 -> 0.04 | J21: 366 | K21: =元データ!L21+K$3 -> 0.1690000073 | L21: =元データ!M21+L$3 -> 0.6739999949 | M21: =元データ!N21+M$3 -> 0.7519999658
B22: 367 | C22: =元データ!D22+C$3 -> 0.07 | D22: =元データ!E22+D$3 -> 0.06 | E22: =元データ!F22+E$3 -> 0.05 | F22: =元データ!G22+F$3 -> 0.03 | G22: =元データ!H22+G$3 -> 0.08 | H22: =元データ!I22+H$3 -> 0.04 | J22: 367 | K22: =元データ!L22+K$3 -> 0.1350000007 | L22: =元データ!M22+L$3 -> 0.6520000043 | M22: =元データ!N22+M$3 -> 0.7329999786
B23: 368 | C23: =元データ!D23+C$3 -> 0.07 | D23: =元データ!E23+D$3 -> 0.06 | E23: =元データ!F23+E$3 -> 0.05 | F23: =元データ!G23+F$3 -> 0.03 | G23: =元データ!H23+G$3 -> 0.08 | H23: =元データ!I23+H$3 -> 0.04 | J23: 368 | K23: =元データ!L23+K$3 -> 0.1140000047 | L23: =元データ!M23+L$3 -> 0.6380000167 | M23: =元データ!N23+M$3 -> 0.719999967
B24: 369 | C24: =元データ!D24+C$3 -> 0.07 | D24: =元データ!E24+D$3 -> 0.05 | E24: =元データ!F24+E$3 -> 0.05 | F24: =元データ!G24+F$3 -> 0.03 | G24: =元データ!H24+G$3 -> 0.08 | H24: =元データ!I24+H$3 -> 0.04 | J24: 369 | K24: =元データ!L24+K$3 -> 0.09299999584 | L24: =元データ!M24+L$3 -> 0.6270000097 | M24: =元データ!N24+M$3 -> 0.7079999652
B25: 370 | C25: =元データ!D25+C$3 -> 0.062 | D25: =元データ!E25+D$3 -> 0.05 | E25: =元データ!F25+E$3 -> 0.05 | F25: =元データ!G25+F$3 -> 0.04 | G25: =元データ!H25+G$3 -> 0.088 | H25: =元データ!I25+H$3 -> 0.04 | J25: 370 | K25: =元データ!L25+K$3 -> 0.07500000949 | L25: =元データ!M25+L$3 -> 0.6159999768 | M25: =元データ!N25+M$3 -> 0.7000000139
B26: 371 | C26: =元データ!D26+C$3 -> 0.06 | D26: =元データ!E26+D$3 -> 0.05 | E26: =元データ!F26+E$3 -> 0.05 | F26: =元データ!G26+F$3 -> 0.04 | G26: =元データ!H26+G$3 -> 0.09 | H26: =元データ!I26+H$3 -> 0.04 | J26: 371 | K26: =元データ!L26+K$3 -> 0.0609999973 | L26: =元データ!M26+L$3 -> 0.6090000211 | M26: =元データ!N26+M$3 -> 0.6939999946
B27: 372 | C27: =元データ!D27+C$3 -> 0.06 | D27: =元データ!E27+D$3 -> 0.05 | E27: =元データ!F27+E$3 -> 0.05 | F27: =元データ!G27+F$3 -> 0.04 | G27: =元データ!H27+G$3 -> 0.09 | H27: =元データ!I27+H$3 -> 0.046 | J27: 372 | K27: =元データ!L27+K$3 -> 0.04999999744 | L27: =元データ!M27+L$3 -> 0.6060000005 | M27: =元データ!N27+M$3 -> 0.6899999713
B28: 373 | C28: =元データ!D28+C$3 -> 0.06 | D28: =元データ!E28+D$3 -> 0.05 | E28: =元データ!F28+E$3 -> 0.06 | F28: =元データ!G28+F$3 -> 0.04 | G28: =元データ!H28+G$3 -> 0.096 | H28: =元データ!I28+H$3 -> 0.05 | J28: 373 | K28: =元データ!L28+K$3 -> 0.04399999769 | L28: =元データ!M28+L$3 -> 0.6070000252 | M28: =元データ!N28+M$3 -> 0.6909999748
B29: 374 | C29: =元データ!D29+C$3 -> 0.06 | D29: =元データ!E29+D$3 -> 0.05 | E29: =元データ!F29+E$3 -> 0.06 | F29: =元データ!G29+F$3 -> 0.05 | G29: =元データ!H29+G$3 -> 0.1 | H29: =元データ!I29+H$3 -> 0.05 | J29: 374 | K29: =元データ!L29+K$3 -> 0.03799999827 | L29: =元データ!M29+L$3 -> 0.608000001 | M29: =元データ!N29+M$3 -> 0.694000004
B30: 375 | C30: =元データ!D30+C$3 -> 0.06 | D30: =元データ!E30+D$3 -> 0.05 | E30: =元データ!F30+E$3 -> 0.06 | F30: =元データ!G30+F$3 -> 0.05 | G30: =元データ!H30+G$3 -> 0.104 | H30: =元データ!I30+H$3 -> 0.05 | J30: 375 | K30: =元データ!L30+K$3 -> 0.03300000017 | L30: =元データ!M30+L$3 -> 0.6099999957 | M30: =元データ!N30+M$3 -> 0.6950000013
B31: 376 | C31: =元データ!D31+C$3 -> 0.06 | D31: =元データ!E31+D$3 -> 0.0575 | E31: =元データ!F31+E$3 -> 0.06 | F31: =元データ!G31+F$3 -> 0.05 | G31: =元データ!H31+G$3 -> 0.11 | H31: =元データ!I31+H$3 -> 0.055 | J31: 376 | K31: =元データ!L31+K$3 -> 0.02800000682 | L31: =元データ!M31+L$3 -> 0.6099999917 | M31: =元データ!N31+M$3 -> 0.695000008
B32: 377 | C32: =元データ!D32+C$3 -> 0.06 | D32: =元データ!E32+D$3 -> 0.06 | E32: =元データ!F32+E$3 -> 0.064 | F32: =元データ!G32+F$3 -> 0.058 | G32: =元データ!H32+G$3 -> 0.11 | H32: =元データ!I32+H$3 -> 0.06 | J32: 377 | K32: =元データ!L32+K$3 -> 0.02600000452 | L32: =元データ!M32+L$3 -> 0.612000003 | M32: =元データ!N32+M$3 -> 0.696999973
B33: 378 | C33: =元データ!D33+C$3 -> 0.054 | D33: =元データ!E33+D$3 -> 0.06 | E33: =元データ!F33+E$3 -> 0.07 | F33: =元データ!G33+F$3 -> 0.06 | G33: =元データ!H33+G$3 -> 0.12 | H33: =元データ!I33+H$3 -> 0.06 | J33: 378 | K33: =元データ!L33+K$3 -> 0.02299999986 | L33: =元データ!M33+L$3 -> 0.6139999799 | M33: =元データ!N33+M$3 -> 0.6970000104
B34: 379 | C34: =元データ!D34+C$3 -> 0.05 | D34: =元データ!E34+D$3 -> 0.06 | E34: =元データ!F34+E$3 -> 0.07 | F34: =元データ!G34+F$3 -> 0.062 | G34: =元データ!H34+G$3 -> 0.12 | H34: =元データ!I34+H$3 -> 0.07 | J34: 379 | K34: =元データ!L34+K$3 -> 0.02100000507 | L34: =元データ!M34+L$3 -> 0.6160000218 | M34: =元データ!N34+M$3 -> 0.6979999991
B35: 380 | C35: =元データ!D35+C$3 -> 0.05 | D35: =元データ!E35+D$3 -> 0.06 | E35: =元データ!F35+E$3 -> 0.07 | F35: =元データ!G35+F$3 -> 0.07 | G35: =元データ!H35+G$3 -> 0.13 | H35: =元データ!I35+H$3 -> 0.07 | J35: 380 | K35: =元データ!L35+K$3 -> 0.01900000963 | L35: =元データ!M35+L$3 -> 0.614999999 | M35: =元データ!N35+M$3 -> 0.6989999977
B36: 381 | C36: =元データ!D36+C$3 -> 0.05 | D36: =元データ!E36+D$3 -> 0.06 | E36: =元データ!F36+E$3 -> 0.075 | F36: =元データ!G36+F$3 -> 0.07 | G36: =元データ!H36+G$3 -> 0.1325 | H36: =元データ!I36+H$3 -> 0.0725 | J36: 381 | K36: =元データ!L36+K$3 -> 0.01800000794 | L36: =元データ!M36+L$3 -> 0.6149999813 | M36: =元データ!N36+M$3 -> 0.7010000182
B37: 382 | C37: =元データ!D37+C$3 -> 0.05 | D37: =元データ!E37+D$3 -> 0.06 | E37: =元データ!F37+E$3 -> 0.08 | F37: =元データ!G37+F$3 -> 0.078 | G37: =元データ!H37+G$3 -> 0.14 | H37: =元データ!I37+H$3 -> 0.08 | J37: 382 | K37: =元データ!L37+K$3 -> 0.01599999649 | L37: =元データ!M37+L$3 -> 0.6130000306 | M37: =元データ!N37+M$3 -> 0.6989999707
B38: 383 | C38: =元データ!D38+C$3 -> 0.05 | D38: =元データ!E38+D$3 -> 0.06 | E38: =元データ!F38+E$3 -> 0.08 | F38: =元データ!G38+F$3 -> 0.08 | G38: =元データ!H38+G$3 -> 0.144 | H38: =元データ!I38+H$3 -> 0.082 | J38: 383 | K38: =元データ!L38+K$3 -> 0.01500000268 | L38: =元データ!M38+L$3 -> 0.6120000116 | M38: =元データ!N38+M$3 -> 0.6960000292
B39: 384 | C39: =元データ!D39+C$3 -> 0.05 | D39: =元データ!E39+D$3 -> 0.068 | E39: =元データ!F39+E$3 -> 0.084 | F39: =元データ!G39+F$3 -> 0.088 | G39: =元データ!H39+G$3 -> 0.15 | H39: =元データ!I39+H$3 -> 0.09 | J39: 384 | K39: =元データ!L39+K$3 -> 0.01400000405 | L39: =元データ!M39+L$3 -> 0.6150000293 | M39: =元データ!N39+M$3 -> 0.6949999634
B40: 385 | C40: =元データ!D40+C$3 -> 0.05 | D40: =元データ!E40+D$3 -> 0.07 | E40: =元データ!F40+E$3 -> 0.09 | F40: =元データ!G40+F$3 -> 0.09 | G40: =元データ!H40+G$3 -> 0.158 | H40: =元データ!I40+H$3 -> 0.09 | J40: 385 | K40: =元データ!L40+K$3 -> 0.01300000024 | L40: =元データ!M40+L$3 -> 0.6160000232 | M40: =元データ!N40+M$3 -> 0.6959999893
B41: 386 | C41: =元データ!D41+C$3 -> 0.05 | D41: =元データ!E41+D$3 -> 0.07 | E41: =元データ!F41+E$3 -> 0.09 | F41: =元データ!G41+F$3 -> 0.1 | G41: =元データ!H41+G$3 -> 0.1625 | H41: =元データ!I41+H$3 -> 0.1 | J41: 386 | K41: =元データ!L41+K$3 -> 0.01500000478 | L41: =元データ!M41+L$3 -> 0.6159999791 | M41: =元データ!N41+M$3 -> 0.697000001
B42: 387 | C42: =元データ!D42+C$3 -> 0.05 | D42: =元データ!E42+D$3 -> 0.07 | E42: =元データ!F42+E$3 -> 0.098 | F42: =元データ!G42+F$3 -> 0.1 | G42: =元データ!H42+G$3 -> 0.17 | H42: =元データ!I42+H$3 -> 0.1 | J42: 387 | K42: =元データ!L42+K$3 -> 0.01500000753 | L42: =元データ!M42+L$3 -> 0.6139999753 | M42: =元データ!N42+M$3 -> 0.6940000337
B43: 388 | C43: =元データ!D43+C$3 -> 0.05 | D43: =元データ!E43+D$3 -> 0.07 | E43: =元データ!F43+E$3 -> 0.1 | F43: =元データ!G43+F$3 -> 0.108 | G43: =元データ!H43+G$3 -> 0.178 | H43: =元データ!I43+H$3 -> 0.106 | J43: 388 | K43: =元データ!L43+K$3 -> 0.01499999743 | L43: =元データ!M43+L$3 -> 0.6110000273 | M43: =元データ!N43+M$3 -> 0.6929999702
B44: 389 | C44: =元データ!D44+C$3 -> 0.05 | D44: =元データ!E44+D$3 -> 0.07 | E44: =元データ!F44+E$3 -> 0.102 | F44: =元データ!G44+F$3 -> 0.11 | G44: =元データ!H44+G$3 -> 0.182 | H44: =元データ!I44+H$3 -> 0.11 | J44: 389 | K44: =元データ!L44+K$3 -> 0.01400000553 | L44: =元データ!M44+L$3 -> 0.6099999884 | M44: =元データ!N44+M$3 -> 0.6919999674
B45: 390 | C45: =元データ!D45+C$3 -> 0.05 | D45: =元データ!E45+D$3 -> 0.076 | E45: =元データ!F45+E$3 -> 0.11 | F45: =元データ!G45+F$3 -> 0.12 | G45: =元データ!H45+G$3 -> 0.19 | H45: =元データ!I45+H$3 -> 0.12 | J45: 390 | K45: =元データ!L45+K$3 -> 0.01200000152 | L45: =元データ!M45+L$3 -> 0.6070000068 | M45: =元データ!N45+M$3 -> 0.6860000207
B46: 391 | C46: =元データ!D46+C$3 -> 0.05 | D46: =元データ!E46+D$3 -> 0.08 | E46: =元データ!F46+E$3 -> 0.11 | F46: =元データ!G46+F$3 -> 0.1225 | G46: =元データ!H46+G$3 -> 0.2 | H46: =元データ!I46+H$3 -> 0.1225 | J46: 391 | K46: =元データ!L46+K$3 -> 0.01299999757 | L46: =元データ!M46+L$3 -> 0.6019999769 | M46: =元データ!N46+M$3 -> 0.6820000015
B47: 392 | C47: =元データ!D47+C$3 -> 0.05 | D47: =元データ!E47+D$3 -> 0.08 | E47: =元データ!F47+E$3 -> 0.118 | F47: =元データ!G47+F$3 -> 0.13 | G47: =元データ!H47+G$3 -> 0.206 | H47: =元データ!I47+H$3 -> 0.13 | J47: 392 | K47: =元データ!L47+K$3 -> 0.01300000251 | L47: =元データ!M47+L$3 -> 0.5979999887 | M47: =元データ!N47+M$3 -> 0.6760000316
B48: 393 | C48: =元データ!D48+C$3 -> 0.05 | D48: =元データ!E48+D$3 -> 0.08 | E48: =元データ!F48+E$3 -> 0.12 | F48: =元データ!G48+F$3 -> 0.134 | G48: =元データ!H48+G$3 -> 0.212 | H48: =元データ!I48+H$3 -> 0.132 | J48: 393 | K48: =元データ!L48+K$3 -> 0.01300000297 | L48: =元データ!M48+L$3 -> 0.5920000256 | M48: =元データ!N48+M$3 -> 0.6699999671
B49: 394 | C49: =元データ!D49+C$3 -> 0.05 | D49: =元データ!E49+D$3 -> 0.08 | E49: =元データ!F49+E$3 -> 0.122 | F49: =元データ!G49+F$3 -> 0.14 | G49: =元データ!H49+G$3 -> 0.22 | H49: =元データ!I49+H$3 -> 0.14 | J49: 394 | K49: =元データ!L49+K$3 -> 0.0139999979 | L49: =元データ!M49+L$3 -> 0.5839999877 | M49: =元データ!N49+M$3 -> 0.6639999841
B50: 395 | C50: =元データ!D50+C$3 -> 0.05 | D50: =元データ!E50+D$3 -> 0.084 | E50: =元データ!F50+E$3 -> 0.13 | F50: =元データ!G50+F$3 -> 0.148 | G50: =元データ!H50+G$3 -> 0.23 | H50: =元データ!I50+H$3 -> 0.144 | J50: 395 | K50: =元データ!L50+K$3 -> 0.0140000061 | L50: =元データ!M50+L$3 -> 0.5789999756 | M50: =元データ!N50+M$3 -> 0.6549999661
B51: 396 | C51: =元データ!D51+C$3 -> 0.05 | D51: =元データ!E51+D$3 -> 0.09 | E51: =元データ!F51+E$3 -> 0.13 | F51: =元データ!G51+F$3 -> 0.155 | G51: =元データ!H51+G$3 -> 0.2375 | H51: =元データ!I51+H$3 -> 0.15 | J51: 396 | K51: =元データ!L51+K$3 -> 0.01400000562 | L51: =元データ!M51+L$3 -> 0.5730000027 | M51: =元データ!N51+M$3 -> 0.6460000322
B52: 397 | C52: =元データ!D52+C$3 -> 0.05 | D52: =元データ!E52+D$3 -> 0.09 | E52: =元データ!F52+E$3 -> 0.14 | F52: =元データ!G52+F$3 -> 0.16 | G52: =元データ!H52+G$3 -> 0.244 | H52: =元データ!I52+H$3 -> 0.158 | J52: 397 | K52: =元データ!L52+K$3 -> 0.01400000981 | L52: =元データ!M52+L$3 -> 0.5649999803 | M52: =元データ!N52+M$3 -> 0.6359999668
B53: 398 | C53: =元データ!D53+C$3 -> 0.05 | D53: =元データ!E53+D$3 -> 0.09 | E53: =元データ!F53+E$3 -> 0.14 | F53: =元データ!G53+F$3 -> 0.166 | G53: =元データ!H53+G$3 -> 0.25 | H53: =元データ!I53+H$3 -> 0.16 | J53: 398 | K53: =元データ!L53+K$3 -> 0.01400001015 | L53: =元データ!M53+L$3 -> 0.5560000028 | M53: =元データ!N53+M$3 -> 0.626000007
B54: 399 | C54: =元データ!D54+C$3 -> 0.05 | D54: =元データ!E54+D$3 -> 0.09 | E54: =元データ!F54+E$3 -> 0.144 | F54: =元データ!G54+F$3 -> 0.17 | G54: =元データ!H54+G$3 -> 0.26 | H54: =元データ!I54+H$3 -> 0.17 | J54: 399 | K54: =元データ!L54+K$3 -> 0.01400000458 | L54: =元データ!M54+L$3 -> 0.5450000138 | M54: =元データ!N54+M$3 -> 0.6170000283
B55: 400 | C55: =元データ!D55+C$3 -> 0.05 | D55: =元データ!E55+D$3 -> 0.096 | E55: =元データ!F55+E$3 -> 0.15 | F55: =元データ!G55+F$3 -> 0.18 | G55: =元データ!H55+G$3 -> 0.268 | H55: =元データ!I55+H$3 -> 0.176 | J55: 400 | K55: =元データ!L55+K$3 -> 0.01299999933 | L55: =元データ!M55+L$3 -> 0.5330000218 | M55: =元データ!N55+M$3 -> 0.6060000049
B56: 401 | C56: =元データ!D56+C$3 -> 0.05 | D56: =元データ!E56+D$3 -> 0.1 | E56: =元データ!F56+E$3 -> 0.156 | F56: =元データ!G56+F$3 -> 0.186 | G56: =元データ!H56+G$3 -> 0.278 | H56: =元データ!I56+H$3 -> 0.18 | J56: 401 | K56: =元データ!L56+K$3 -> 0.01399999632 | L56: =元データ!M56+L$3 -> 0.5220000023 | M56: =元データ!N56+M$3 -> 0.5909999728
B57: 402 | C57: =元データ!D57+C$3 -> 0.05 | D57: =元データ!E57+D$3 -> 0.1 | E57: =元データ!F57+E$3 -> 0.16 | F57: =元データ!G57+F$3 -> 0.19 | G57: =元データ!H57+G$3 -> 0.285 | H57: =元データ!I57+H$3 -> 0.1875 | J57: 402 | K57: =元データ!L57+K$3 -> 0.01300000013 | L57: =元データ!M57+L$3 -> 0.512000024 | M57: =元データ!N57+M$3 -> 0.5800000072
B58: 403 | C58: =元データ!D58+C$3 -> 0.05 | D58: =元データ!E58+D$3 -> 0.1 | E58: =元データ!F58+E$3 -> 0.16 | F58: =元データ!G58+F$3 -> 0.198 | G58: =元データ!H58+G$3 -> 0.292 | H58: =元データ!I58+H$3 -> 0.19 | J58: 403 | K58: =元データ!L58+K$3 -> 0.0119999993 | L58: =元データ!M58+L$3 -> 0.5020000111 | M58: =元データ!N58+M$3 -> 0.5680000274
B59: 404 | C59: =元データ!D59+C$3 -> 0.05 | D59: =元データ!E59+D$3 -> 0.102 | E59: =元データ!F59+E$3 -> 0.17 | F59: =元データ!G59+F$3 -> 0.204 | G59: =元データ!H59+G$3 -> 0.302 | H59: =元データ!I59+H$3 -> 0.2 | J59: 404 | K59: =元データ!L59+K$3 -> 0.01299999957 | L59: =元データ!M59+L$3 -> 0.4930000025 | M59: =元データ!N59+M$3 -> 0.5579999836
B60: 405 | C60: =元データ!D60+C$3 -> 0.05 | D60: =元データ!E60+D$3 -> 0.11 | E60: =元データ!F60+E$3 -> 0.17 | F60: =元データ!G60+F$3 -> 0.21 | G60: =元データ!H60+G$3 -> 0.31 | H60: =元データ!I60+H$3 -> 0.204 | J60: 405 | K60: =元データ!L60+K$3 -> 0.012999999 | L60: =元データ!M60+L$3 -> 0.4779999826 | M60: =元データ!N60+M$3 -> 0.543999998
B61: 406 | C61: =元データ!D61+C$3 -> 0.05 | D61: =元データ!E61+D$3 -> 0.11 | E61: =元データ!F61+E$3 -> 0.18 | F61: =元データ!G61+F$3 -> 0.218 | G61: =元データ!H61+G$3 -> 0.318 | H61: =元データ!I61+H$3 -> 0.21 | J61: 406 | K61: =元データ!L61+K$3 -> 0.01199999959 | L61: =元データ!M61+L$3 -> 0.4649999818 | M61: =元データ!N61+M$3 -> 0.5269999962
B62: 407 | C62: =元データ!D62+C$3 -> 0.05 | D62: =元データ!E62+D$3 -> 0.11 | E62: =元データ!F62+E$3 -> 0.18 | F62: =元データ!G62+F$3 -> 0.2225 | G62: =元データ!H62+G$3 -> 0.3275 | H62: =元データ!I62+H$3 -> 0.22 | J62: 407 | K62: =元データ!L62+K$3 -> 0.01299999982 | L62: =元データ!M62+L$3 -> 0.4510000169 | M62: =元データ!N62+M$3 -> 0.5120000123
B63: 408 | C63: =元データ!D63+C$3 -> 0.05 | D63: =元データ!E63+D$3 -> 0.11 | E63: =元データ!F63+E$3 -> 0.188 | F63: =元データ!G63+F$3 -> 0.23 | G63: =元データ!H63+G$3 -> 0.332 | H63: =元データ!I63+H$3 -> 0.222 | J63: 408 | K63: =元データ!L63+K$3 -> 0.01300001007 | L63: =元データ!M63+L$3 -> 0.4390000107 | M63: =元データ!N63+M$3 -> 0.4979999881
B64: 409 | C64: =元データ!D64+C$3 -> 0.05 | D64: =元データ!E64+D$3 -> 0.118 | E64: =元データ!F64+E$3 -> 0.19 | F64: =元データ!G64+F$3 -> 0.234 | G64: =元データ!H64+G$3 -> 0.34 | H64: =元データ!I64+H$3 -> 0.23 | J64: 409 | K64: =元データ!L64+K$3 -> 0.01399999612 | L64: =元データ!M64+L$3 -> 0.4289999905 | M64: =元データ!N64+M$3 -> 0.4869999907
B65: 410 | C65: =元データ!D65+C$3 -> 0.05 | D65: =元データ!E65+D$3 -> 0.12 | E65: =元データ!F65+E$3 -> 0.196 | F65: =元データ!G65+F$3 -> 0.24 | G65: =元データ!H65+G$3 -> 0.348 | H65: =元データ!I65+H$3 -> 0.232 | J65: 410 | K65: =元データ!L65+K$3 -> 0.01400000786 | L65: =元データ!M65+L$3 -> 0.4159999957 | M65: =元データ!N65+M$3 -> 0.4730000225
B66: 411 | C66: =元データ!D66+C$3 -> 0.05 | D66: =元データ!E66+D$3 -> 0.12 | E66: =元データ!F66+E$3 -> 0.2 | F66: =元データ!G66+F$3 -> 0.248 | G66: =元データ!H66+G$3 -> 0.356 | H66: =元データ!I66+H$3 -> 0.24 | J66: 411 | K66: =元データ!L66+K$3 -> 0.01400000219 | L66: =元データ!M66+L$3 -> 0.4009999984 | M66: =元データ!N66+M$3 -> 0.4569999809
B67: 412 | C67: =元データ!D67+C$3 -> 0.05 | D67: =元データ!E67+D$3 -> 0.12 | E67: =元データ!F67+E$3 -> 0.2 | F67: =元データ!G67+F$3 -> 0.25 | G67: =元データ!H67+G$3 -> 0.362 | H67: =元データ!I67+H$3 -> 0.248 | J67: 412 | K67: =元データ!L67+K$3 -> 0.01300000231 | L67: =元データ!M67+L$3 -> 0.3850000132 | M67: =元データ!N67+M$3 -> 0.4409999752
B68: 413 | C68: =元データ!D68+C$3 -> 0.05 | D68: =元データ!E68+D$3 -> 0.12 | E68: =元データ!F68+E$3 -> 0.21 | F68: =元データ!G68+F$3 -> 0.26 | G68: =元データ!H68+G$3 -> 0.37 | H68: =元データ!I68+H$3 -> 0.25 | J68: 413 | K68: =元データ!L68+K$3 -> 0.01300000812 | L68: =元データ!M68+L$3 -> 0.3700000233 | M68: =元データ!N68+M$3 -> 0.4239999977
B69: 414 | C69: =元データ!D69+C$3 -> 0.05 | D69: =元データ!E69+D$3 -> 0.122 | E69: =元データ!F69+E$3 -> 0.21 | F69: =元データ!G69+F$3 -> 0.26 | G69: =元データ!H69+G$3 -> 0.378 | H69: =元データ!I69+H$3 -> 0.256 | J69: 414 | K69: =元データ!L69+K$3 -> 0.01399999589 | L69: =元データ!M69+L$3 -> 0.3559999983 | M69: =元データ!N69+M$3 -> 0.4069999952
B70: 415 | C70: =元データ!D70+C$3 -> 0.05 | D70: =元データ!E70+D$3 -> 0.13 | E70: =元データ!F70+E$3 -> 0.212 | F70: =元データ!G70+F$3 -> 0.27 | G70: =元データ!H70+G$3 -> 0.382 | H70: =元データ!I70+H$3 -> 0.26 | J70: 415 | K70: =元データ!L70+K$3 -> 0.01200000448 | L70: =元データ!M70+L$3 -> 0.3400000123 | M70: =元データ!N70+M$3 -> 0.3900000052
B71: 416 | C71: =元データ!D71+C$3 -> 0.05 | D71: =元データ!E71+D$3 -> 0.13 | E71: =元データ!F71+E$3 -> 0.22 | F71: =元データ!G71+F$3 -> 0.272 | G71: =元データ!H71+G$3 -> 0.39 | H71: =元データ!I71+H$3 -> 0.266 | J71: 416 | K71: =元データ!L71+K$3 -> 0.01200000646 | L71: =元データ!M71+L$3 -> 0.3279999941 | M71: =元データ!N71+M$3 -> 0.3780000014
B72: 417 | C72: =元データ!D72+C$3 -> 0.05 | D72: =元データ!E72+D$3 -> 0.13 | E72: =元データ!F72+E$3 -> 0.22 | F72: =元データ!G72+F$3 -> 0.28 | G72: =元データ!H72+G$3 -> 0.398 | H72: =元データ!I72+H$3 -> 0.27 | J72: 417 | K72: =元データ!L72+K$3 -> 0.01199999498 | L72: =元データ!M72+L$3 -> 0.3149999865 | M72: =元データ!N72+M$3 -> 0.3630000091
B73: 418 | C73: =元データ!D73+C$3 -> 0.05 | D73: =元データ!E73+D$3 -> 0.13 | E73: =元データ!F73+E$3 -> 0.228 | F73: =元データ!G73+F$3 -> 0.284 | G73: =元データ!H73+G$3 -> 0.402 | H73: =元データ!I73+H$3 -> 0.278 | J73: 418 | K73: =元データ!L73+K$3 -> 0.01400000589 | L73: =元データ!M73+L$3 -> 0.3010000021 | M73: =元データ!N73+M$3 -> 0.3459999988
B74: 419 | C74: =元データ!D74+C$3 -> 0.04 | D74: =元データ!E74+D$3 -> 0.13 | E74: =元データ!F74+E$3 -> 0.23 | F74: =元データ!G74+F$3 -> 0.29 | G74: =元データ!H74+G$3 -> 0.41 | H74: =元データ!I74+H$3 -> 0.28 | J74: 419 | K74: =元データ!L74+K$3 -> 0.01300000518 | L74: =元データ!M74+L$3 -> 0.287999987 | M74: =元データ!N74+M$3 -> 0.3290000033
B75: 420 | C75: =元データ!D75+C$3 -> 0.04 | D75: =元データ!E75+D$3 -> 0.1325 | E75: =元データ!F75+E$3 -> 0.23 | F75: =元データ!G75+F$3 -> 0.29 | G75: =元データ!H75+G$3 -> 0.4175 | H75: =元データ!I75+H$3 -> 0.285 | J75: 420 | K75: =元データ!L75+K$3 -> 0.01300000216 | L75: =元データ!M75+L$3 -> 0.2739999914 | M75: =元データ!N75+M$3 -> 0.3150000076
B76: 421 | C76: =元データ!D76+C$3 -> 0.048 | D76: =元データ!E76+D$3 -> 0.14 | E76: =元データ!F76+E$3 -> 0.234 | F76: =元データ!G76+F$3 -> 0.3 | G76: =元データ!H76+G$3 -> 0.42 | H76: =元データ!I76+H$3 -> 0.29 | J76: 421 | K76: =元データ!L76+K$3 -> 0.01300001024 | L76: =元データ!M76+L$3 -> 0.2589999997 | M76: =元データ!N76+M$3 -> 0.2989999808
B77: 422 | C77: =元データ!D77+C$3 -> 0.042 | D77: =元データ!E77+D$3 -> 0.14 | E77: =元データ!F77+E$3 -> 0.24 | F77: =元データ!G77+F$3 -> 0.3 | G77: =元データ!H77+G$3 -> 0.426 | H77: =元データ!I77+H$3 -> 0.29 | J77: 422 | K77: =元データ!L77+K$3 -> 0.01299999682 | L77: =元データ!M77+L$3 -> 0.2449999925 | M77: =元データ!N77+M$3 -> 0.2839999899
B78: 423 | C78: =元データ!D78+C$3 -> 0.04 | D78: =元データ!E78+D$3 -> 0.14 | E78: =元データ!F78+E$3 -> 0.24 | F78: =元データ!G78+F$3 -> 0.31 | G78: =元データ!H78+G$3 -> 0.432 | H78: =元データ!I78+H$3 -> 0.3 | J78: 423 | K78: =元データ!L78+K$3 -> 0.01500000968 | L78: =元データ!M78+L$3 -> 0.231999993 | M78: =元データ!N78+M$3 -> 0.2700000117
B79: 424 | C79: =元データ!D79+C$3 -> 0.044 | D79: =元データ!E79+D$3 -> 0.14 | E79: =元データ!F79+E$3 -> 0.248 | F79: =元データ!G79+F$3 -> 0.312 | G79: =元データ!H79+G$3 -> 0.44 | H79: =元データ!I79+H$3 -> 0.3 | J79: 424 | K79: =元データ!L79+K$3 -> 0.01400000789 | L79: =元データ!M79+L$3 -> 0.2210000046 | M79: =元データ!N79+M$3 -> 0.2590000039
B80: 425 | C80: =元データ!D80+C$3 -> 0.04 | D80: =元データ!E80+D$3 -> 0.14 | E80: =元データ!F80+E$3 -> 0.25 | F80: =元データ!G80+F$3 -> 0.32 | G80: =元データ!H80+G$3 -> 0.444 | H80: =元データ!I80+H$3 -> 0.31 | J80: 425 | K80: =元データ!L80+K$3 -> 0.01400001033 | L80: =元データ!M80+L$3 -> 0.2079999899 | M80: =元データ!N80+M$3 -> 0.2440000028
B81: 426 | C81: =元データ!D81+C$3 -> 0.04 | D81: =元データ!E81+D$3 -> 0.145 | E81: =元データ!F81+E$3 -> 0.25 | F81: =元データ!G81+F$3 -> 0.32 | G81: =元データ!H81+G$3 -> 0.45 | H81: =元データ!I81+H$3 -> 0.31 | J81: 426 | K81: =元データ!L81+K$3 -> 0.01399999533 | L81: =元データ!M81+L$3 -> 0.1940000129 | M81: =元データ!N81+M$3 -> 0.2299999941
B82: 427 | C82: =元データ!D82+C$3 -> 0.04 | D82: =元データ!E82+D$3 -> 0.15 | E82: =元データ!F82+E$3 -> 0.256 | F82: =元データ!G82+F$3 -> 0.326 | G82: =元データ!H82+G$3 -> 0.456 | H82: =元データ!I82+H$3 -> 0.316 | J82: 427 | K82: =元データ!L82+K$3 -> 0.01400000342 | L82: =元データ!M82+L$3 -> 0.1819999909 | M82: =元データ!N82+M$3 -> 0.2159999812
B83: 428 | C83: =元データ!D83+C$3 -> 0.04 | D83: =元データ!E83+D$3 -> 0.15 | E83: =元データ!F83+E$3 -> 0.26 | F83: =元データ!G83+F$3 -> 0.33 | G83: =元データ!H83+G$3 -> 0.46 | H83: =元データ!I83+H$3 -> 0.32 | J83: 428 | K83: =元データ!L83+K$3 -> 0.01300000143 | L83: =元データ!M83+L$3 -> 0.1699999947 | M83: =元データ!N83+M$3 -> 0.1999999881
B84: 429 | C84: =元データ!D84+C$3 -> 0.04 | D84: =元データ!E84+D$3 -> 0.15 | E84: =元データ!F84+E$3 -> 0.26 | F84: =元データ!G84+F$3 -> 0.336 | G84: =元データ!H84+G$3 -> 0.47 | H84: =元データ!I84+H$3 -> 0.32 | J84: 429 | K84: =元データ!L84+K$3 -> 0.0129999992 | L84: =元データ!M84+L$3 -> 0.159000006 | M84: =元データ!N84+M$3 -> 0.1890000011
B85: 430 | C85: =元データ!D85+C$3 -> 0.04 | D85: =元データ!E85+D$3 -> 0.15 | E85: =元データ!F85+E$3 -> 0.262 | F85: =元データ!G85+F$3 -> 0.34 | G85: =元データ!H85+G$3 -> 0.47 | H85: =元データ!I85+H$3 -> 0.33 | J85: 430 | K85: =元データ!L85+K$3 -> 0.01300000202 | L85: =元データ!M85+L$3 -> 0.1469999996 | M85: =元データ!N85+M$3 -> 0.1769999951
B86: 431 | C86: =元データ!D86+C$3 -> 0.04 | D86: =元データ!E86+D$3 -> 0.15 | E86: =元データ!F86+E$3 -> 0.27 | F86: =元データ!G86+F$3 -> 0.34 | G86: =元データ!H86+G$3 -> 0.478 | H86: =元データ!I86+H$3 -> 0.33 | J86: 431 | K86: =元データ!L86+K$3 -> 0.01499999856 | L86: =元データ!M86+L$3 -> 0.1380000035 | M86: =元データ!N86+M$3 -> 0.1659999874
B87: 432 | C87: =元データ!D87+C$3 -> 0.04 | D87: =元データ!E87+D$3 -> 0.15 | E87: =元データ!F87+E$3 -> 0.27 | F87: =元データ!G87+F$3 -> 0.35 | G87: =元データ!H87+G$3 -> 0.48 | H87: =元データ!I87+H$3 -> 0.336 | J87: 432 | K87: =元データ!L87+K$3 -> 0.01499999624 | L87: =元データ!M87+L$3 -> 0.1300000087 | M87: =元データ!N87+M$3 -> 0.1569999873
B88: 433 | C88: =元データ!D88+C$3 -> 0.04 | D88: =元データ!E88+D$3 -> 0.15 | E88: =元データ!F88+E$3 -> 0.27 | F88: =元データ!G88+F$3 -> 0.35 | G88: =元データ!H88+G$3 -> 0.4875 | H88: =元データ!I88+H$3 -> 0.34 | J88: 433 | K88: =元データ!L88+K$3 -> 0.01500001052 | L88: =元データ!M88+L$3 -> 0.1189999943 | M88: =元データ!N88+M$3 -> 0.1459999828
B89: 434 | C89: =元データ!D89+C$3 -> 0.04 | D89: =元データ!E89+D$3 -> 0.158 | E89: =元データ!F89+E$3 -> 0.274 | F89: =元データ!G89+F$3 -> 0.352 | G89: =元データ!H89+G$3 -> 0.49 | H89: =元データ!I89+H$3 -> 0.34 | J89: 434 | K89: =元データ!L89+K$3 -> 0.015000012 | L89: =元データ!M89+L$3 -> 0.110000015 | M89: =元データ!N89+M$3 -> 0.1359999855
B90: 435 | C90: =元データ!D90+C$3 -> 0.04 | D90: =元データ!E90+D$3 -> 0.16 | E90: =元データ!F90+E$3 -> 0.28 | F90: =元データ!G90+F$3 -> 0.36 | G90: =元データ!H90+G$3 -> 0.498 | H90: =元データ!I90+H$3 -> 0.344 | J90: 435 | K90: =元データ!L90+K$3 -> 0.01500000424 | L90: =元データ!M90+L$3 -> 0.1010000148 | M90: =元データ!N90+M$3 -> 0.1259999996
B91: 436 | C91: =元データ!D91+C$3 -> 0.04 | D91: =元データ!E91+D$3 -> 0.16 | E91: =元データ!F91+E$3 -> 0.28 | F91: =元データ!G91+F$3 -> 0.36 | G91: =元データ!H91+G$3 -> 0.5 | H91: =元データ!I91+H$3 -> 0.35 | J91: 436 | K91: =元データ!L91+K$3 -> 0.01500000371 | L91: =元データ!M91+L$3 -> 0.09399999795 | M91: =元データ!N91+M$3 -> 0.1159999842
B92: 437 | C92: =元データ!D92+C$3 -> 0.04 | D92: =元データ!E92+D$3 -> 0.16 | E92: =元データ!F92+E$3 -> 0.28 | F92: =元データ!G92+F$3 -> 0.366 | G92: =元データ!H92+G$3 -> 0.502 | H92: =元データ!I92+H$3 -> 0.35 | J92: 437 | K92: =元データ!L92+K$3 -> 0.01300000758 | L92: =元データ!M92+L$3 -> 0.08500000107 | M92: =元データ!N92+M$3 -> 0.1070000013
B93: 438 | C93: =元データ!D93+C$3 -> 0.04 | D93: =元データ!E93+D$3 -> 0.16 | E93: =元データ!F93+E$3 -> 0.286 | F93: =元データ!G93+F$3 -> 0.37 | G93: =元データ!H93+G$3 -> 0.51 | H93: =元データ!I93+H$3 -> 0.356 | J93: 438 | K93: =元データ!L93+K$3 -> 0.01400000815 | L93: =元データ!M93+L$3 -> 0.07900000698 | M93: =元データ!N93+M$3 -> 0.1009999894
B94: 439 | C94: =元データ!D94+C$3 -> 0.04 | D94: =元データ!E94+D$3 -> 0.16 | E94: =元データ!F94+E$3 -> 0.29 | F94: =元データ!G94+F$3 -> 0.37 | G94: =元データ!H94+G$3 -> 0.51 | H94: =元データ!I94+H$3 -> 0.36 | J94: 439 | K94: =元データ!L94+K$3 -> 0.01399999512 | L94: =元データ!M94+L$3 -> 0.07099999419 | M94: =元データ!N94+M$3 -> 0.09399999625
B95: 440 | C95: =元データ!D95+C$3 -> 0.04 | D95: =元データ!E95+D$3 -> 0.16 | E95: =元データ!F95+E$3 -> 0.29 | F95: =元データ!G95+F$3 -> 0.38 | G95: =元データ!H95+G$3 -> 0.52 | H95: =元データ!I95+H$3 -> 0.36 | J95: 440 | K95: =元データ!L95+K$3 -> 0.01300000046 | L95: =元データ!M95+L$3 -> 0.06200001219 | M95: =元データ!N95+M$3 -> 0.08500000209
B96: 441 | C96: =元データ!D96+C$3 -> 0.04 | D96: =元データ!E96+D$3 -> 0.16 | E96: =元データ!F96+E$3 -> 0.29 | F96: =元データ!G96+F$3 -> 0.38 | G96: =元データ!H96+G$3 -> 0.52 | H96: =元データ!I96+H$3 -> 0.36 | J96: 441 | K96: =元データ!L96+K$3 -> 0.01300000774 | L96: =元データ!M96+L$3 -> 0.05600000703 | M96: =元データ!N96+M$3 -> 0.07800000675
B97: 442 | C97: =元データ!D97+C$3 -> 0.04 | D97: =元データ!E97+D$3 -> 0.16 | E97: =元データ!F97+E$3 -> 0.29 | F97: =元データ!G97+F$3 -> 0.38 | G97: =元データ!H97+G$3 -> 0.52 | H97: =元データ!I97+H$3 -> 0.368 | J97: 442 | K97: =元データ!L97+K$3 -> 0.01300001192 | L97: =元データ!M97+L$3 -> 0.05099999358 | M97: =元データ!N97+M$3 -> 0.07400000737
B98: 443 | C98: =元データ!D98+C$3 -> 0.04 | D98: =元データ!E98+D$3 -> 0.168 | E98: =元データ!F98+E$3 -> 0.298 | F98: =元データ!G98+F$3 -> 0.382 | G98: =元データ!H98+G$3 -> 0.528 | H98: =元データ!I98+H$3 -> 0.37 | J98: 443 | K98: =元データ!L98+K$3 -> 0.01299999817 | L98: =元データ!M98+L$3 -> 0.04600000041 | M98: =元データ!N98+M$3 -> 0.06799999837
B99: 444 | C99: =元データ!D99+C$3 -> 0.04 | D99: =元データ!E99+D$3 -> 0.17 | E99: =元データ!F99+E$3 -> 0.3 | F99: =元データ!G99+F$3 -> 0.388 | G99: =元データ!H99+G$3 -> 0.53 | H99: =元データ!I99+H$3 -> 0.37 | J99: 444 | K99: =元データ!L99+K$3 -> 0.01299999566 | L99: =元データ!M99+L$3 -> 0.04200001145 | M99: =元データ!N99+M$3 -> 0.06200000185
B100: 445 | C100: =元データ!D100+C$3 -> 0.04 | D100: =元データ!E100+D$3 -> 0.17 | E100: =元データ!F100+E$3 -> 0.3 | F100: =元データ!G100+F$3 -> 0.39 | G100: =元データ!H100+G$3 -> 0.53 | H100: =元データ!I100+H$3 -> 0.374 | J100: 445 | K100: =元データ!L100+K$3 -> 0.01300000623 | L100: =元データ!M100+L$3 -> 0.03800000075 | M100: =元データ!N100+M$3 -> 0.0570000002
B101: 446 | C101: =元データ!D101+C$3 -> 0.04 | D101: =元データ!E101+D$3 -> 0.17 | E101: =元データ!F101+E$3 -> 0.3 | F101: =元データ!G101+F$3 -> 0.39 | G101: =元データ!H101+G$3 -> 0.54 | H101: =元データ!I101+H$3 -> 0.38 | J101: 446 | K101: =元データ!L101+K$3 -> 0.0139999969 | L101: =元データ!M101+L$3 -> 0.03499999653 | M101: =元データ!N101+M$3 -> 0.05399999314
B102: 447 | C102: =元データ!D102+C$3 -> 0.04 | D102: =元データ!E102+D$3 -> 0.17 | E102: =元データ!F102+E$3 -> 0.3 | F102: =元データ!G102+F$3 -> 0.39 | G102: =元データ!H102+G$3 -> 0.54 | H102: =元データ!I102+H$3 -> 0.38 | J102: 447 | K102: =元データ!L102+K$3 -> 0.01500001215 | L102: =元データ!M102+L$3 -> 0.03200000829 | M102: =元データ!N102+M$3 -> 0.0500000034
B103: 448 | C103: =元データ!D103+C$3 -> 0.04 | D103: =元データ!E103+D$3 -> 0.17 | E103: =元データ!F103+E$3 -> 0.308 | F103: =元データ!G103+F$3 -> 0.396 | G103: =元データ!H103+G$3 -> 0.542 | H103: =元データ!I103+H$3 -> 0.38 | J103: 448 | K103: =元データ!L103+K$3 -> 0.01599999652 | L103: =元データ!M103+L$3 -> 0.02900001012 | M103: =元データ!N103+M$3 -> 0.04599999453
B104: 449 | C104: =元データ!D104+C$3 -> 0.04 | D104: =元データ!E104+D$3 -> 0.17 | E104: =元データ!F104+E$3 -> 0.31 | F104: =元データ!G104+F$3 -> 0.4 | G104: =元データ!H104+G$3 -> 0.55 | H104: =元データ!I104+H$3 -> 0.3875 | J104: 449 | K104: =元データ!L104+K$3 -> 0.01500001153 | L104: =元データ!M104+L$3 -> 0.02499999441 | M104: =元データ!N104+M$3 -> 0.04099999426
B105: 450 | C105: =元データ!D105+C$3 -> 0.04 | D105: =元データ!E105+D$3 -> 0.17 | E105: =元データ!F105+E$3 -> 0.31 | F105: =元データ!G105+F$3 -> 0.402 | G105: =元データ!H105+G$3 -> 0.55 | H105: =元データ!I105+H$3 -> 0.39 | J105: 450 | K105: =元データ!L105+K$3 -> 0.01499999686 | L105: =元データ!M105+L$3 -> 0.02200000372 | M105: =元データ!N105+M$3 -> 0.03699998801
B106: 451 | C106: =元データ!D106+C$3 -> 0.04 | D106: =元データ!E106+D$3 -> 0.17 | E106: =元データ!F106+E$3 -> 0.31 | F106: =元データ!G106+F$3 -> 0.41 | G106: =元データ!H106+G$3 -> 0.55 | H106: =元データ!I106+H$3 -> 0.39 | J106: 451 | K106: =元データ!L106+K$3 -> 0.01500001282 | L106: =元データ!M106+L$3 -> 0.01900001366 | M106: =元データ!N106+M$3 -> 0.03399998533
B107: 452 | C107: =元データ!D107+C$3 -> 0.04 | D107: =元データ!E107+D$3 -> 0.17 | E107: =元データ!F107+E$3 -> 0.31 | F107: =元データ!G107+F$3 -> 0.41 | G107: =元データ!H107+G$3 -> 0.558 | H107: =元データ!I107+H$3 -> 0.39 | J107: 452 | K107: =元データ!L107+K$3 -> 0.0149999983 | L107: =元データ!M107+L$3 -> 0.01699999945 | M107: =元データ!N107+M$3 -> 0.03399998966
B108: 453 | C108: =元データ!D108+C$3 -> 0.04 | D108: =元データ!E108+D$3 -> 0.172 | E108: =元データ!F108+E$3 -> 0.316 | F108: =元データ!G108+F$3 -> 0.41 | G108: =元データ!H108+G$3 -> 0.56 | H108: =元データ!I108+H$3 -> 0.398 | J108: 453 | K108: =元データ!L108+K$3 -> 0.01599999769 | L108: =元データ!M108+L$3 -> 0.01600000933 | M108: =元データ!N108+M$3 -> 0.03200000876
B109: 454 | C109: =元データ!D109+C$3 -> 0.04 | D109: =元データ!E109+D$3 -> 0.18 | E109: =元データ!F109+E$3 -> 0.32 | F109: =元データ!G109+F$3 -> 0.412 | G109: =元データ!H109+G$3 -> 0.564 | H109: =元データ!I109+H$3 -> 0.4 | J109: 454 | K109: =元データ!L109+K$3 -> 0.0160000113 | L109: =元データ!M109+L$3 -> 0.01400000321 | M109: =元データ!N109+M$3 -> 0.02999998508
B110: 455 | C110: =元データ!D110+C$3 -> 0.04 | D110: =元データ!E110+D$3 -> 0.18 | E110: =元データ!F110+E$3 -> 0.32 | F110: =元データ!G110+F$3 -> 0.42 | G110: =元データ!H110+G$3 -> 0.57 | H110: =元データ!I110+H$3 -> 0.4 | J110: 455 | K110: =元データ!L110+K$3 -> 0.01599999351 | L110: =元データ!M110+L$3 -> 0.01100001054 | M110: =元データ!N110+M$3 -> 0.02699999139
B111: 456 | C111: =元データ!D111+C$3 -> 0.04 | D111: =元データ!E111+D$3 -> 0.18 | E111: =元データ!F111+E$3 -> 0.322 | F111: =元データ!G111+F$3 -> 0.42 | G111: =元データ!H111+G$3 -> 0.576 | H111: =元データ!I111+H$3 -> 0.408 | J111: 456 | K111: =元データ!L111+K$3 -> 0.01599999857 | L111: =元データ!M111+L$3 -> 0.01000000384 | M111: =元データ!N111+M$3 -> 0.0249999916
B112: 457 | C112: =元データ!D112+C$3 -> 0.04 | D112: =元データ!E112+D$3 -> 0.18 | E112: =元データ!F112+E$3 -> 0.33 | F112: =元データ!G112+F$3 -> 0.43 | G112: =元データ!H112+G$3 -> 0.58 | H112: =元データ!I112+H$3 -> 0.41 | J112: 457 | K112: =元データ!L112+K$3 -> 0.01600000939 | L112: =元データ!M112+L$3 -> 0.0090000092 | M112: =元データ!N112+M$3 -> 0.02399999978
B113: 458 | C113: =元データ!D113+C$3 -> 0.04 | D113: =元データ!E113+D$3 -> 0.18 | E113: =元データ!F113+E$3 -> 0.33 | F113: =元データ!G113+F$3 -> 0.43 | G113: =元データ!H113+G$3 -> 0.59 | H113: =元データ!I113+H$3 -> 0.416 | J113: 458 | K113: =元データ!L113+K$3 -> 0.01299999479 | L113: =元データ!M113+L$3 -> 0.004999999604 | M113: =元データ!N113+M$3 -> 0.02099999285
B114: 459 | C114: =元データ!D114+C$3 -> 0.04 | D114: =元データ!E114+D$3 -> 0.18 | E114: =元データ!F114+E$3 -> 0.33 | F114: =元データ!G114+F$3 -> 0.435 | G114: =元データ!H114+G$3 -> 0.5925 | H114: =元データ!I114+H$3 -> 0.42 | J114: 459 | K114: =元データ!L114+K$3 -> 0.0130000095 | L114: =元データ!M114+L$3 -> 0.005000002054 | M114: =元データ!N114+M$3 -> 0.01899998886
B115: 460 | C115: =元データ!D115+C$3 -> 0.04 | D115: =元データ!E115+D$3 -> 0.18 | E115: =元データ!F115+E$3 -> 0.336 | F115: =元データ!G115+F$3 -> 0.44 | G115: =元データ!H115+G$3 -> 0.6 | H115: =元データ!I115+H$3 -> 0.422 | J115: 460 | K115: =元データ!L115+K$3 -> 0.01400001024 | L115: =元データ!M115+L$3 -> 0.003999997234 | M115: =元データ!N115+M$3 -> 0.01799999539
B116: 461 | C116: =元データ!D116+C$3 -> 0.04 | D116: =元データ!E116+D$3 -> 0.19 | E116: =元データ!F116+E$3 -> 0.34 | F116: =元データ!G116+F$3 -> 0.444 | G116: =元データ!H116+G$3 -> 0.6 | H116: =元データ!I116+H$3 -> 0.43 | J116: 461 | K116: =元データ!L116+K$3 -> 0.0149999947 | L116: =元データ!M116+L$3 -> 0.003000011487 | M116: =元データ!N116+M$3 -> 0.01800000204
B117: 462 | C117: =元データ!D117+C$3 -> 0.04 | D117: =元データ!E117+D$3 -> 0.19 | E117: =元データ!F117+E$3 -> 0.342 | F117: =元データ!G117+F$3 -> 0.45 | G117: =元データ!H117+G$3 -> 0.608 | H117: =元データ!I117+H$3 -> 0.432 | J117: 462 | K117: =元データ!L117+K$3 -> 0.01399999514 | L117: =元データ!M117+L$3 -> 0.004000010867 | M117: =元データ!N117+M$3 -> 0.01699999385
B118: 463 | C118: =元データ!D118+C$3 -> 0.04 | D118: =元データ!E118+D$3 -> 0.19 | E118: =元データ!F118+E$3 -> 0.35 | F118: =元データ!G118+F$3 -> 0.456 | G118: =元データ!H118+G$3 -> 0.616 | H118: =元データ!I118+H$3 -> 0.44 | J118: 463 | K118: =元データ!L118+K$3 -> 0.01599999646 | L118: =元データ!M118+L$3 -> 0.005000008475 | M118: =元データ!N118+M$3 -> 0.01900000029
B119: 464 | C119: =元データ!D119+C$3 -> 0.04 | D119: =元データ!E119+D$3 -> 0.19 | E119: =元データ!F119+E$3 -> 0.35 | F119: =元データ!G119+F$3 -> 0.46 | G119: =元データ!H119+G$3 -> 0.622 | H119: =元データ!I119+H$3 -> 0.44 | J119: 464 | K119: =元データ!L119+K$3 -> 0.01599999403 | L119: =元データ!M119+L$3 -> 0.0029999962 | M119: =元データ!N119+M$3 -> 0.01699999728
B120: 465 | C120: =元データ!D120+C$3 -> 0.04 | D120: =元データ!E120+D$3 -> 0.19 | E120: =元データ!F120+E$3 -> 0.35 | F120: =元データ!G120+F$3 -> 0.466 | G120: =元データ!H120+G$3 -> 0.63 | H120: =元データ!I120+H$3 -> 0.45 | J120: 465 | K120: =元データ!L120+K$3 -> 0.01500001119 | L120: =元データ!M120+L$3 -> 0.00100000635 | M120: =元データ!N120+M$3 -> 0.01599999606
B121: 466 | C121: =元データ!D121+C$3 -> 0.04 | D121: =元データ!E121+D$3 -> 0.196 | E121: =元データ!F121+E$3 -> 0.356 | F121: =元データ!G121+F$3 -> 0.47 | G121: =元データ!H121+G$3 -> 0.636 | H121: =元データ!I121+H$3 -> 0.45 | J121: 466 | K121: =元データ!L121+K$3 -> 0.01500001034 | L121: =元データ!M121+L$3 -> -5.941078069e-09 | M121: =元データ!N121+M$3 -> 0.01500000097
B122: 467 | C122: =元データ!D122+C$3 -> 0.04 | D122: =元データ!E122+D$3 -> 0.2 | E122: =元データ!F122+E$3 -> 0.36 | F122: =元データ!G122+F$3 -> 0.47 | G122: =元データ!H122+G$3 -> 0.64 | H122: =元データ!I122+H$3 -> 0.456 | J122: 467 | K122: =元データ!L122+K$3 -> 0.01300000452 | L122: =元データ!M122+L$3 -> -2.765023183e-09 | M122: =元データ!N122+M$3 -> 0.01400000166
B123: 468 | C123: =元データ!D123+C$3 -> 0.04 | D123: =元データ!E123+D$3 -> 0.2 | E123: =元データ!F123+E$3 -> 0.36 | F123: =元データ!G123+F$3 -> 0.478 | G123: =元データ!H123+G$3 -> 0.642 | H123: =元データ!I123+H$3 -> 0.46 | J123: 468 | K123: =元データ!L123+K$3 -> 0.01299999778 | L123: =元データ!M123+L$3 -> -0.001000001995 | M123: =元データ!N123+M$3 -> 0.01299998643
B124: 469 | C124: =元データ!D124+C$3 -> 0.04 | D124: =元データ!E124+D$3 -> 0.2 | E124: =元データ!F124+E$3 -> 0.364 | F124: =元データ!G124+F$3 -> 0.48 | G124: =元データ!H124+G$3 -> 0.65 | H124: =元データ!I124+H$3 -> 0.462 | J124: 469 | K124: =元データ!L124+K$3 -> 0.01300000889 | L124: =元データ!M124+L$3 -> -0.001000002247 | M124: =元データ!N124+M$3 -> 0.01300000365
B125: 470 | C125: =元データ!D125+C$3 -> 0.04 | D125: =元データ!E125+D$3 -> 0.2 | E125: =元データ!F125+E$3 -> 0.37 | F125: =元データ!G125+F$3 -> 0.4875 | G125: =元データ!H125+G$3 -> 0.6525 | H125: =元データ!I125+H$3 -> 0.47 | J125: 470 | K125: =元データ!L125+K$3 -> 0.01300000358 | L125: =元データ!M125+L$3 -> 9.340534924e-09 | M125: =元データ!N125+M$3 -> 0.01199999419
B126: 471 | C126: =元データ!D126+C$3 -> 0.04 | D126: =元データ!E126+D$3 -> 0.2 | E126: =元データ!F126+E$3 -> 0.37 | F126: =元データ!G126+F$3 -> 0.49 | G126: =元データ!H126+G$3 -> 0.66 | H126: =元データ!I126+H$3 -> 0.47 | J126: 471 | K126: =元データ!L126+K$3 -> 0.01300000911 | L126: =元データ!M126+L$3 -> 1.119453463e-08 | M126: =元データ!N126+M$3 -> 0.0120000039
B127: 472 | C127: =元データ!D127+C$3 -> 0.04 | D127: =元データ!E127+D$3 -> 0.2 | E127: =元データ!F127+E$3 -> 0.376 | F127: =元データ!G127+F$3 -> 0.494 | G127: =元データ!H127+G$3 -> 0.668 | H127: =元データ!I127+H$3 -> 0.478 | J127: 472 | K127: =元データ!L127+K$3 -> 0.01299999844 | L127: =元データ!M127+L$3 -> 3.643888039e-09 | M127: =元データ!N127+M$3 -> 0.01199998958
B128: 473 | C128: =元データ!D128+C$3 -> 0.04 | D128: =元データ!E128+D$3 -> 0.208 | E128: =元データ!F128+E$3 -> 0.38 | F128: =元データ!G128+F$3 -> 0.5 | G128: =元データ!H128+G$3 -> 0.672 | H128: =元データ!I128+H$3 -> 0.48 | J128: 473 | K128: =元データ!L128+K$3 -> 0.01400000847 | L128: =元データ!M128+L$3 -> -2.465567632e-09 | M128: =元データ!N128+M$3 -> 0.01199998754
B129: 474 | C129: =元データ!D129+C$3 -> 0.04 | D129: =元データ!E129+D$3 -> 0.21 | E129: =元データ!F129+E$3 -> 0.38 | F129: =元データ!G129+F$3 -> 0.5 | G129: =元データ!H129+G$3 -> 0.68 | H129: =元データ!I129+H$3 -> 0.482 | J129: 474 | K129: =元データ!L129+K$3 -> 0.01400000591 | L129: =元データ!M129+L$3 -> -0.002000003115 | M129: =元データ!N129+M$3 -> 0.01100000595
B130: 475 | C130: =元データ!D130+C$3 -> 0.04 | D130: =元データ!E130+D$3 -> 0.21 | E130: =元データ!F130+E$3 -> 0.38 | F130: =元データ!G130+F$3 -> 0.508 | G130: =元データ!H130+G$3 -> 0.68 | H130: =元データ!I130+H$3 -> 0.49 | J130: 475 | K130: =元データ!L130+K$3 -> 0.01400000317 | L130: =元データ!M130+L$3 -> -0.002000002555 | M130: =元データ!N130+M$3 -> 0.01100000537
B131: 476 | C131: =元データ!D131+C$3 -> 0.04 | D131: =元データ!E131+D$3 -> 0.21 | E131: =元データ!F131+E$3 -> 0.38 | F131: =元データ!G131+F$3 -> 0.51 | G131: =元データ!H131+G$3 -> 0.68 | H131: =元データ!I131+H$3 -> 0.49 | J131: 476 | K131: =元データ!L131+K$3 -> 0.01300000826 | L131: =元データ!M131+L$3 -> -0.001999988253 | M131: =元データ!N131+M$3 -> 0.009999989173
B132: 477 | C132: =元データ!D132+C$3 -> 0.04 | D132: =元データ!E132+D$3 -> 0.21 | E132: =元データ!F132+E$3 -> 0.38 | F132: =元データ!G132+F$3 -> 0.51 | G132: =元データ!H132+G$3 -> 0.688 | H132: =元データ!I132+H$3 -> 0.49 | J132: 477 | K132: =元データ!L132+K$3 -> 0.01199999495 | L132: =元データ!M132+L$3 -> -0.002000000296 | M132: =元データ!N132+M$3 -> 0.008999989506
B133: 478 | C133: =元データ!D133+C$3 -> 0.04 | D133: =元データ!E133+D$3 -> 0.21 | E133: =元データ!F133+E$3 -> 0.388 | F133: =元データ!G133+F$3 -> 0.51 | G133: =元データ!H133+G$3 -> 0.69 | H133: =元データ!I133+H$3 -> 0.49 | J133: 478 | K133: =元データ!L133+K$3 -> 0.0130000094 | L133: =元データ!M133+L$3 -> -0.002000004138 | M133: =元データ!N133+M$3 -> 0.009000001347
B134: 479 | C134: =元データ!D134+C$3 -> 0.04 | D134: =元データ!E134+D$3 -> 0.21 | E134: =元データ!F134+E$3 -> 0.39 | F134: =元データ!G134+F$3 -> 0.51 | G134: =元データ!H134+G$3 -> 0.69 | H134: =元データ!I134+H$3 -> 0.494 | J134: 479 | K134: =元データ!L134+K$3 -> 0.01400000806 | L134: =元データ!M134+L$3 -> -0.0009999898093 | M134: =元データ!N134+M$3 -> 0.009999994823
B135: 480 | C135: =元データ!D135+C$3 -> 0.04 | D135: =元データ!E135+D$3 -> 0.21 | E135: =元データ!F135+E$3 -> 0.39 | F135: =元データ!G135+F$3 -> 0.518 | G135: =元データ!H135+G$3 -> 0.69 | H135: =元データ!I135+H$3 -> 0.5 | J135: 480 | K135: =元データ!L135+K$3 -> 0.0129999964 | L135: =元データ!M135+L$3 -> -0.0009999938347 | M135: =元データ!N135+M$3 -> 0.009999998209
B136: 481 | C136: =元データ!D136+C$3 -> 0.04 | D136: =元データ!E136+D$3 -> 0.21 | E136: =元データ!F136+E$3 -> 0.39 | F136: =元データ!G136+F$3 -> 0.52 | G136: =元データ!H136+G$3 -> 0.694 | H136: =元データ!I136+H$3 -> 0.5 | J136: 481 | K136: =元データ!L136+K$3 -> 0.01300000021 | L136: =元データ!M136+L$3 -> -0.001999993964 | M136: =元データ!N136+M$3 -> 0.009999992006
B137: 482 | C137: =元データ!D137+C$3 -> 0.04 | D137: =元データ!E137+D$3 -> 0.21 | E137: =元データ!F137+E$3 -> 0.39 | F137: =元データ!G137+F$3 -> 0.52 | G137: =元データ!H137+G$3 -> 0.7 | H137: =元データ!I137+H$3 -> 0.5 | J137: 482 | K137: =元データ!L137+K$3 -> 0.01300000946 | L137: =元データ!M137+L$3 -> -0.002000001416 | M137: =元データ!N137+M$3 -> 0.009000001696
B138: 483 | C138: =元データ!D138+C$3 -> 0.04 | D138: =元データ!E138+D$3 -> 0.21 | E138: =元データ!F138+E$3 -> 0.39 | F138: =元データ!G138+F$3 -> 0.52 | G138: =元データ!H138+G$3 -> 0.7 | H138: =元データ!I138+H$3 -> 0.5 | J138: 483 | K138: =元データ!L138+K$3 -> 0.01299999663 | L138: =元データ!M138+L$3 -> -0.002999991761 | M138: =元データ!N138+M$3 -> 0.009000002719
B139: 484 | C139: =元データ!D139+C$3 -> 0.04 | D139: =元データ!E139+D$3 -> 0.21 | E139: =元データ!F139+E$3 -> 0.39 | F139: =元データ!G139+F$3 -> 0.52 | G139: =元データ!H139+G$3 -> 0.7 | H139: =元データ!I139+H$3 -> 0.5 | J139: 484 | K139: =元データ!L139+K$3 -> 0.01200000516 | L139: =元データ!M139+L$3 -> -0.003000001406 | M139: =元データ!N139+M$3 -> 0.007999999439
B140: 485 | C140: =元データ!D140+C$3 -> 0.032 | D140: =元データ!E140+D$3 -> 0.21 | E140: =元データ!F140+E$3 -> 0.39 | F140: =元データ!G140+F$3 -> 0.52 | G140: =元データ!H140+G$3 -> 0.7 | H140: =元データ!I140+H$3 -> 0.5 | J140: 485 | K140: =元データ!L140+K$3 -> 0.01299999673 | L140: =元データ!M140+L$3 -> -0.001999996127 | M140: =元データ!N140+M$3 -> 0.00800000111
B141: 486 | C141: =元データ!D141+C$3 -> 0.03 | D141: =元データ!E141+D$3 -> 0.21 | E141: =元データ!F141+E$3 -> 0.39 | F141: =元データ!G141+F$3 -> 0.52 | G141: =元データ!H141+G$3 -> 0.7 | H141: =元データ!I141+H$3 -> 0.5 | J141: 486 | K141: =元データ!L141+K$3 -> 0.01199999907 | L141: =元データ!M141+L$3 -> -0.001999999986 | M141: =元データ!N141+M$3 -> 0.008999998918
B142: 487 | C142: =元データ!D142+C$3 -> 0.03 | D142: =元データ!E142+D$3 -> 0.21 | E142: =元データ!F142+E$3 -> 0.39 | F142: =元データ!G142+F$3 -> 0.52 | G142: =元データ!H142+G$3 -> 0.7 | H142: =元データ!I142+H$3 -> 0.5 | J142: 487 | K142: =元データ!L142+K$3 -> 0.01100000368 | L142: =元データ!M142+L$3 -> -0.002999992523 | M142: =元データ!N142+M$3 -> 0.006999990085
B143: 488 | C143: =元データ!D143+C$3 -> 0.03 | D143: =元データ!E143+D$3 -> 0.21 | E143: =元データ!F143+E$3 -> 0.39 | F143: =元データ!G143+F$3 -> 0.52 | G143: =元データ!H143+G$3 -> 0.7 | H143: =元データ!I143+H$3 -> 0.5 | J143: 488 | K143: =元データ!L143+K$3 -> 0.01100000635 | L143: =元データ!M143+L$3 -> -0.003999993603 | M143: =元データ!N143+M$3 -> 0.007999998726
B144: 489 | C144: =元データ!D144+C$3 -> 0.03 | D144: =元データ!E144+D$3 -> 0.21 | E144: =元データ!F144+E$3 -> 0.39 | F144: =元データ!G144+F$3 -> 0.524 | G144: =元データ!H144+G$3 -> 0.71 | H144: =元データ!I144+H$3 -> 0.51 | J144: 489 | K144: =元データ!L144+K$3 -> 0.01199999954 | L144: =元データ!M144+L$3 -> -0.00300000254 | M144: =元データ!N144+M$3 -> 0.007999989544
B145: 490 | C145: =元データ!D145+C$3 -> 0.03 | D145: =元データ!E145+D$3 -> 0.21 | E145: =元データ!F145+E$3 -> 0.394 | F145: =元データ!G145+F$3 -> 0.53 | G145: =元データ!H145+G$3 -> 0.71 | H145: =元データ!I145+H$3 -> 0.51 | J145: 490 | K145: =元データ!L145+K$3 -> 0.01200000096 | L145: =元データ!M145+L$3 -> -0.003000000096 | M145: =元データ!N145+M$3 -> 0.007999996224
B146: 491 | C146: =元データ!D146+C$3 -> 0.03 | D146: =元データ!E146+D$3 -> 0.21 | E146: =元データ!F146+E$3 -> 0.4 | F146: =元データ!G146+F$3 -> 0.53 | G146: =元データ!H146+G$3 -> 0.71 | H146: =元データ!I146+H$3 -> 0.51 | J146: 491 | K146: =元データ!L146+K$3 -> 0.01100000448 | L146: =元データ!M146+L$3 -> -0.002999993688 | M146: =元データ!N146+M$3 -> 0.007999990513
B147: 492 | C147: =元データ!D147+C$3 -> 0.03 | D147: =元データ!E147+D$3 -> 0.21 | E147: =元データ!F147+E$3 -> 0.4 | F147: =元データ!G147+F$3 -> 0.53 | G147: =元データ!H147+G$3 -> 0.71 | H147: =元データ!I147+H$3 -> 0.51 | J147: 492 | K147: =元データ!L147+K$3 -> 0.01199999924 | L147: =元データ!M147+L$3 -> -0.002999997037 | M147: =元データ!N147+M$3 -> 0.008999995556
B148: 493 | C148: =元データ!D148+C$3 -> 0.03 | D148: =元データ!E148+D$3 -> 0.21 | E148: =元データ!F148+E$3 -> 0.4 | F148: =元データ!G148+F$3 -> 0.53 | G148: =元データ!H148+G$3 -> 0.71 | H148: =元データ!I148+H$3 -> 0.51 | J148: 493 | K148: =元データ!L148+K$3 -> 0.01100000519 | L148: =元データ!M148+L$3 -> -0.003000000751 | M148: =元データ!N148+M$3 -> 0.00800000302
B149: 494 | C149: =元データ!D149+C$3 -> 0.03 | D149: =元データ!E149+D$3 -> 0.21 | E149: =元データ!F149+E$3 -> 0.4 | F149: =元データ!G149+F$3 -> 0.53 | G149: =元データ!H149+G$3 -> 0.716 | H149: =元データ!I149+H$3 -> 0.51 | J149: 494 | K149: =元データ!L149+K$3 -> 0.01100000664 | L149: =元データ!M149+L$3 -> -0.002999991948 | M149: =元データ!N149+M$3 -> 0.007000002226
B150: 495 | C150: =元データ!D150+C$3 -> 0.03 | D150: =元データ!E150+D$3 -> 0.21 | E150: =元データ!F150+E$3 -> 0.4 | F150: =元データ!G150+F$3 -> 0.538 | G150: =元データ!H150+G$3 -> 0.72 | H150: =元データ!I150+H$3 -> 0.516 | J150: 495 | K150: =元データ!L150+K$3 -> 0.01100000525 | L150: =元データ!M150+L$3 -> -0.002999998204 | M150: =元データ!N150+M$3 -> 0.006999998516
B151: 496 | C151: =元データ!D151+C$3 -> 0.03 | D151: =元データ!E151+D$3 -> 0.22 | E151: =元データ!F151+E$3 -> 0.4 | F151: =元データ!G151+F$3 -> 0.54 | G151: =元データ!H151+G$3 -> 0.72 | H151: =元データ!I151+H$3 -> 0.52 | J151: 496 | K151: =元データ!L151+K$3 -> 0.01099999846 | L151: =元データ!M151+L$3 -> -0.002999994902 | M151: =元データ!N151+M$3 -> 0.006999999911
B152: 497 | C152: =元データ!D152+C$3 -> 0.03 | D152: =元データ!E152+D$3 -> 0.22 | E152: =元データ!F152+E$3 -> 0.4 | F152: =元データ!G152+F$3 -> 0.54 | G152: =元データ!H152+G$3 -> 0.722 | H152: =元データ!I152+H$3 -> 0.52 | J152: 497 | K152: =元データ!L152+K$3 -> 0.01099999967 | L152: =元データ!M152+L$3 -> -0.002999999435 | M152: =元データ!N152+M$3 -> 0.006999997537
B153: 498 | C153: =元データ!D153+C$3 -> 0.03 | D153: =元データ!E153+D$3 -> 0.22 | E153: =元データ!F153+E$3 -> 0.406 | F153: =元データ!G153+F$3 -> 0.54 | G153: =元データ!H153+G$3 -> 0.73 | H153: =元データ!I153+H$3 -> 0.52 | J153: 498 | K153: =元データ!L153+K$3 -> 0.01099999678 | L153: =元データ!M153+L$3 -> -0.002999997336 | M153: =元データ!N153+M$3 -> 0.00700000042
B154: 499 | C154: =元データ!D154+C$3 -> 0.03 | D154: =元データ!E154+D$3 -> 0.22 | E154: =元データ!F154+E$3 -> 0.41 | F154: =元データ!G154+F$3 -> 0.54 | G154: =元データ!H154+G$3 -> 0.73 | H154: =元データ!I154+H$3 -> 0.526 | J154: 499 | K154: =元データ!L154+K$3 -> 0.01100000069 | L154: =元データ!M154+L$3 -> -0.003999999995 | M154: =元データ!N154+M$3 -> 0.008000000036
B155: 500 | C155: =元データ!D155+C$3 -> 0.03 | D155: =元データ!E155+D$3 -> 0.22 | E155: =元データ!F155+E$3 -> 0.41 | F155: =元データ!G155+F$3 -> 0.55 | G155: =元データ!H155+G$3 -> 0.73 | H155: =元データ!I155+H$3 -> 0.53 | J155: 500 | K155: =元データ!L155+K$3 -> 0.01100000803 | L155: =元データ!M155+L$3 -> -0.001999990532 | M155: =元データ!N155+M$3 -> 0.006999993664
B156: 501 | C156: =元データ!D156+C$3 -> 0.03 | D156: =元データ!E156+D$3 -> 0.22 | E156: =元データ!F156+E$3 -> 0.41 | F156: =元データ!G156+F$3 -> 0.55 | G156: =元データ!H156+G$3 -> 0.738 | H156: =元データ!I156+H$3 -> 0.53 | J156: 501 | K156: =元データ!L156+K$3 -> 0.01100000613 | L156: =元データ!M156+L$3 -> -0.001999994404 | M156: =元データ!N156+M$3 -> 0.007999996529
B157: 502 | C157: =元データ!D157+C$3 -> 0.03 | D157: =元データ!E157+D$3 -> 0.22 | E157: =元データ!F157+E$3 -> 0.41 | F157: =元データ!G157+F$3 -> 0.55 | G157: =元データ!H157+G$3 -> 0.74 | H157: =元データ!I157+H$3 -> 0.53 | J157: 502 | K157: =元データ!L157+K$3 -> 0.009999999114 | L157: =元データ!M157+L$3 -> -0.002999998622 | M157: =元データ!N157+M$3 -> 0.007999992708
B158: 503 | C158: =元データ!D158+C$3 -> 0.03 | D158: =元データ!E158+D$3 -> 0.22 | E158: =元データ!F158+E$3 -> 0.414 | F158: =元データ!G158+F$3 -> 0.558 | G158: =元データ!H158+G$3 -> 0.74 | H158: =元データ!I158+H$3 -> 0.538 | J158: 503 | K158: =元データ!L158+K$3 -> 0.01100000889 | L158: =元データ!M158+L$3 -> -0.002999989505 | M158: =元データ!N158+M$3 -> 0.007000000096
B159: 504 | C159: =元データ!D159+C$3 -> 0.03 | D159: =元データ!E159+D$3 -> 0.22 | E159: =元データ!F159+E$3 -> 0.42 | F159: =元データ!G159+F$3 -> 0.56 | G159: =元データ!H159+G$3 -> 0.7475 | H159: =元データ!I159+H$3 -> 0.54 | J159: 504 | K159: =元データ!L159+K$3 -> 0.01000000665 | L159: =元データ!M159+L$3 -> -0.002999990502 | M159: =元データ!N159+M$3 -> 0.007000000307
B160: 505 | C160: =元データ!D160+C$3 -> 0.03 | D160: =元データ!E160+D$3 -> 0.22 | E160: =元データ!F160+E$3 -> 0.42 | F160: =元データ!G160+F$3 -> 0.56 | G160: =元データ!H160+G$3 -> 0.75 | H160: =元データ!I160+H$3 -> 0.54 | J160: 505 | K160: =元データ!L160+K$3 -> 0.0099999987 | L160: =元データ!M160+L$3 -> -0.001999990053 | M160: =元データ!N160+M$3 -> 0.006000000762
B161: 506 | C161: =元データ!D161+C$3 -> 0.03 | D161: =元データ!E161+D$3 -> 0.22 | E161: =元データ!F161+E$3 -> 0.42 | F161: =元データ!G161+F$3 -> 0.56 | G161: =元データ!H161+G$3 -> 0.75 | H161: =元データ!I161+H$3 -> 0.54 | J161: 506 | K161: =元データ!L161+K$3 -> 0.008000007692 | L161: =元データ!M161+L$3 -> -0.00399999973 | M161: =元データ!N161+M$3 -> 0.005000002129
B162: 507 | C162: =元データ!D162+C$3 -> 0.03 | D162: =元データ!E162+D$3 -> 0.22 | E162: =元データ!F162+E$3 -> 0.42 | F162: =元データ!G162+F$3 -> 0.564 | G162: =元データ!H162+G$3 -> 0.75 | H162: =元データ!I162+H$3 -> 0.546 | J162: 507 | K162: =元データ!L162+K$3 -> 0.008000003131 | L162: =元データ!M162+L$3 -> -0.003999996273 | M162: =元データ!N162+M$3 -> 0.004999996426
B163: 508 | C163: =元データ!D163+C$3 -> 0.03 | D163: =元データ!E163+D$3 -> 0.22 | E163: =元データ!F163+E$3 -> 0.42 | F163: =元データ!G163+F$3 -> 0.57 | G163: =元データ!H163+G$3 -> 0.75 | H163: =元データ!I163+H$3 -> 0.55 | J163: 508 | K163: =元データ!L163+K$3 -> 0.009000007213 | L163: =元データ!M163+L$3 -> -0.003000003079 | M163: =元データ!N163+M$3 -> 0.005000004001
B164: 509 | C164: =元データ!D164+C$3 -> 0.03 | D164: =元データ!E164+D$3 -> 0.22 | E164: =元データ!F164+E$3 -> 0.42 | F164: =元データ!G164+F$3 -> 0.57 | G164: =元データ!H164+G$3 -> 0.752 | H164: =元データ!I164+H$3 -> 0.55 | J164: 509 | K164: =元データ!L164+K$3 -> 0.009000005694 | L164: =元データ!M164+L$3 -> -0.003999994071 | M164: =元データ!N164+M$3 -> 0.004999995216
B165: 510 | C165: =元データ!D165+C$3 -> 0.03 | D165: =元データ!E165+D$3 -> 0.22 | E165: =元データ!F165+E$3 -> 0.42 | F165: =元データ!G165+F$3 -> 0.57 | G165: =元データ!H165+G$3 -> 0.76 | H165: =元データ!I165+H$3 -> 0.55 | J165: 510 | K165: =元データ!L165+K$3 -> 0.007999997057 | L165: =元データ!M165+L$3 -> -0.004999997151 | M165: =元データ!N165+M$3 -> 0.006000001623
B166: 511 | C166: =元データ!D166+C$3 -> 0.03 | D166: =元データ!E166+D$3 -> 0.22 | E166: =元データ!F166+E$3 -> 0.42 | F166: =元データ!G166+F$3 -> 0.57 | G166: =元データ!H166+G$3 -> 0.76 | H166: =元データ!I166+H$3 -> 0.55 | J166: 511 | K166: =元データ!L166+K$3 -> 0.007000004249 | L166: =元データ!M166+L$3 -> -0.003999996104 | M166: =元データ!N166+M$3 -> 0.004999995599
B167: 512 | C167: =元データ!D167+C$3 -> 0.03 | D167: =元データ!E167+D$3 -> 0.22 | E167: =元データ!F167+E$3 -> 0.42 | F167: =元データ!G167+F$3 -> 0.57 | G167: =元データ!H167+G$3 -> 0.758 | H167: =元データ!I167+H$3 -> 0.55 | J167: 512 | K167: =元データ!L167+K$3 -> 0.007000006316 | L167: =元データ!M167+L$3 -> -0.004000000391 | M167: =元データ!N167+M$3 -> 0.005000002589
B168: 513 | C168: =元データ!D168+C$3 -> 0.03 | D168: =元データ!E168+D$3 -> 0.22 | E168: =元データ!F168+E$3 -> 0.42 | F168: =元データ!G168+F$3 -> 0.57 | G168: =元データ!H168+G$3 -> 0.75 | H168: =元データ!I168+H$3 -> 0.55 | J168: 513 | K168: =元データ!L168+K$3 -> 0.006999998861 | L168: =元データ!M168+L$3 -> -0.003999993715 | M168: =元データ!N168+M$3 -> 0.004999998851
B169: 514 | C169: =元データ!D169+C$3 -> 0.03 | D169: =元データ!E169+D$3 -> 0.22 | E169: =元データ!F169+E$3 -> 0.42 | F169: =元データ!G169+F$3 -> 0.562 | G169: =元データ!H169+G$3 -> 0.75 | H169: =元データ!I169+H$3 -> 0.544 | J169: 514 | K169: =元データ!L169+K$3 -> 0.007000001891 | L169: =元データ!M169+L$3 -> -0.003999993791 | M169: =元データ!N169+M$3 -> 0.0049999981
B170: 515 | C170: =元データ!D170+C$3 -> 0.03 | D170: =元データ!E170+D$3 -> 0.22 | E170: =元データ!F170+E$3 -> 0.42 | F170: =元データ!G170+F$3 -> 0.56 | G170: =元データ!H170+G$3 -> 0.75 | H170: =元データ!I170+H$3 -> 0.54 | J170: 515 | K170: =元データ!L170+K$3 -> 0.006000003341 | L170: =元データ!M170+L$3 -> -0.003999991752 | M170: =元データ!N170+M$3 -> 0.002999999155
B171: 516 | C171: =元データ!D171+C$3 -> 0.03 | D171: =元データ!E171+D$3 -> 0.22 | E171: =元データ!F171+E$3 -> 0.414 | F171: =元データ!G171+F$3 -> 0.56 | G171: =元データ!H171+G$3 -> 0.742 | H171: =元データ!I171+H$3 -> 0.54 | J171: 516 | K171: =元データ!L171+K$3 -> 0.006000005932 | L171: =元データ!M171+L$3 -> -0.004999991506 | M171: =元データ!N171+M$3 -> 0.002999990425
B172: 517 | C172: =元データ!D172+C$3 -> 0.03 | D172: =元データ!E172+D$3 -> 0.22 | E172: =元データ!F172+E$3 -> 0.41 | F172: =元データ!G172+F$3 -> 0.55 | G172: =元データ!H172+G$3 -> 0.738 | H172: =元データ!I172+H$3 -> 0.534 | J172: 517 | K172: =元データ!L172+K$3 -> 0.006000007997 | L172: =元データ!M172+L$3 -> -0.004999992662 | M172: =元データ!N172+M$3 -> 0.003999999937
B173: 518 | C173: =元データ!D173+C$3 -> 0.03 | D173: =元データ!E173+D$3 -> 0.216 | E173: =元データ!F173+E$3 -> 0.41 | F173: =元データ!G173+F$3 -> 0.55 | G173: =元データ!H173+G$3 -> 0.73 | H173: =元データ!I173+H$3 -> 0.53 | J173: 518 | K173: =元データ!L173+K$3 -> 0.006000000455 | L173: =元データ!M173+L$3 -> -0.004999997085 | M173: =元データ!N173+M$3 -> 0.004000001364
B174: 519 | C174: =元データ!D174+C$3 -> 0.03 | D174: =元データ!E174+D$3 -> 0.21 | E174: =元データ!F174+E$3 -> 0.402 | F174: =元データ!G174+F$3 -> 0.54 | G174: =元データ!H174+G$3 -> 0.722 | H174: =元データ!I174+H$3 -> 0.524 | J174: 519 | K174: =元データ!L174+K$3 -> 0.003999998867 | L174: =元データ!M174+L$3 -> -0.005999995979 | M174: =元データ!N174+M$3 -> 0.003000003016
B175: 520 | C175: =元データ!D175+C$3 -> 0.03 | D175: =元データ!E175+D$3 -> 0.21 | E175: =元データ!F175+E$3 -> 0.4 | F175: =元データ!G175+F$3 -> 0.534 | G175: =元データ!H175+G$3 -> 0.712 | H175: =元データ!I175+H$3 -> 0.518 | J175: 520 | K175: =元データ!L175+K$3 -> 0.004000004177 | L175: =元データ!M175+L$3 -> -0.005999991612 | M175: =元データ!N175+M$3 -> 0.001999997059
B176: 521 | C176: =元データ!D176+C$3 -> 0.03 | D176: =元データ!E176+D$3 -> 0.208 | E176: =元データ!F176+E$3 -> 0.39 | F176: =元データ!G176+F$3 -> 0.526 | G176: =元データ!H176+G$3 -> 0.702 | H176: =元データ!I176+H$3 -> 0.51 | J176: 521 | K176: =元データ!L176+K$3 -> 0.003999997401 | L176: =元データ!M176+L$3 -> -0.006999993336 | M176: =元データ!N176+M$3 -> 0.002999996185
B177: 522 | C177: =元データ!D177+C$3 -> 0.028 | D177: =元データ!E177+D$3 -> 0.2 | E177: =元データ!F177+E$3 -> 0.386 | F177: =元データ!G177+F$3 -> 0.518 | G177: =元データ!H177+G$3 -> 0.69 | H177: =元データ!I177+H$3 -> 0.5 | J177: 522 | K177: =元データ!L177+K$3 -> 0.00399999914 | L177: =元データ!M177+L$3 -> -0.00499999445 | M177: =元データ!N177+M$3 -> 0.002999992108
B178: 523 | C178: =元データ!D178+C$3 -> 0.02 | D178: =元データ!E178+D$3 -> 0.2 | E178: =元データ!F178+E$3 -> 0.378 | F178: =元データ!G178+F$3 -> 0.508 | G178: =元データ!H178+G$3 -> 0.678 | H178: =元データ!I178+H$3 -> 0.49 | J178: 523 | K178: =元データ!L178+K$3 -> 0.003000001102 | L178: =元データ!M178+L$3 -> -0.004999997986 | M178: =元データ!N178+M$3 -> 0.003000003992
B179: 524 | C179: =元データ!D179+C$3 -> 0.02 | D179: =元データ!E179+D$3 -> 0.194 | E179: =元データ!F179+E$3 -> 0.37 | F179: =元データ!G179+F$3 -> 0.496 | G179: =元データ!H179+G$3 -> 0.666 | H179: =元データ!I179+H$3 -> 0.48 | J179: 524 | K179: =元データ!L179+K$3 -> 0.003999996527 | L179: =元データ!M179+L$3 -> -0.004000000172 | M179: =元データ!N179+M$3 -> 0.002999996041
B180: 525 | C180: =元データ!D180+C$3 -> 0.02 | D180: =元データ!E180+D$3 -> 0.19 | E180: =元データ!F180+E$3 -> 0.362 | F180: =元データ!G180+F$3 -> 0.486 | G180: =元データ!H180+G$3 -> 0.65 | H180: =元データ!I180+H$3 -> 0.47 | J180: 525 | K180: =元データ!L180+K$3 -> 0.004000003569 | L180: =元データ!M180+L$3 -> -0.005000001219 | M180: =元データ!N180+M$3 -> 0.003000002297
B181: 526 | C181: =元データ!D181+C$3 -> 0.02 | D181: =元データ!E181+D$3 -> 0.188 | E181: =元データ!F181+E$3 -> 0.356 | F181: =元データ!G181+F$3 -> 0.476 | G181: =元データ!H181+G$3 -> 0.636 | H181: =元データ!I181+H$3 -> 0.46 | J181: 526 | K181: =元データ!L181+K$3 -> 0.004000001941 | L181: =元データ!M181+L$3 -> -0.005000001286 | M181: =元データ!N181+M$3 -> 0.003000003531
B182: 527 | C182: =元データ!D182+C$3 -> 0.02 | D182: =元データ!E182+D$3 -> 0.18 | E182: =元データ!F182+E$3 -> 0.346 | F182: =元データ!G182+F$3 -> 0.464 | G182: =元データ!H182+G$3 -> 0.62 | H182: =元データ!I182+H$3 -> 0.446 | J182: 527 | K182: =元データ!L182+K$3 -> 0.002999996142 | L182: =元データ!M182+L$3 -> -0.007000003117 | M182: =元データ!N182+M$3 -> 0.002000003573
B183: 528 | C183: =元データ!D183+C$3 -> 0.02 | D183: =元データ!E183+D$3 -> 0.18 | E183: =元データ!F183+E$3 -> 0.338 | F183: =元データ!G183+F$3 -> 0.45 | G183: =元データ!H183+G$3 -> 0.604 | H183: =元データ!I183+H$3 -> 0.434 | J183: 528 | K183: =元データ!L183+K$3 -> 0.00399999878 | L183: =元データ!M183+L$3 -> -0.005999991574 | M183: =元データ!N183+M$3 -> 0.002999994303
B184: 529 | C184: =元データ!D184+C$3 -> 0.02 | D184: =元データ!E184+D$3 -> 0.17 | E184: =元データ!F184+E$3 -> 0.328 | F184: =元データ!G184+F$3 -> 0.438 | G184: =元データ!H184+G$3 -> 0.588 | H184: =元データ!I184+H$3 -> 0.424 | J184: 529 | K184: =元データ!L184+K$3 -> 0.004000000982 | L184: =元データ!M184+L$3 -> -0.00599999816 | M184: =元データ!N184+M$3 -> 0.003000001791
B185: 530 | C185: =元データ!D185+C$3 -> 0.02 | D185: =元データ!E185+D$3 -> 0.17 | E185: =元データ!F185+E$3 -> 0.318 | F185: =元データ!G185+F$3 -> 0.426 | G185: =元データ!H185+G$3 -> 0.57 | H185: =元データ!I185+H$3 -> 0.41 | J185: 530 | K185: =元データ!L185+K$3 -> 0.002999999325 | L185: =元データ!M185+L$3 -> -0.007000000131 | M185: =元データ!N185+M$3 -> 0.0009999913123
B186: 531 | C186: =元データ!D186+C$3 -> 0.02 | D186: =元データ!E186+D$3 -> 0.16 | E186: =元データ!F186+E$3 -> 0.308 | F186: =元データ!G186+F$3 -> 0.41 | G186: =元データ!H186+G$3 -> 0.552 | H186: =元データ!I186+H$3 -> 0.396 | J186: 531 | K186: =元データ!L186+K$3 -> 0.002000006541 | L186: =元データ!M186+L$3 -> -0.005999989733 | M186: =元データ!N186+M$3 -> 0.001999999295
B187: 532 | C187: =元データ!D187+C$3 -> 0.02 | D187: =元データ!E187+D$3 -> 0.158 | E187: =元データ!F187+E$3 -> 0.296 | F187: =元データ!G187+F$3 -> 0.396 | G187: =元データ!H187+G$3 -> 0.534 | H187: =元データ!I187+H$3 -> 0.384 | J187: 532 | K187: =元データ!L187+K$3 -> 0.00199999852 | L187: =元データ!M187+L$3 -> -0.007000002225 | M187: =元データ!N187+M$3 -> 0.00099999642
B188: 533 | C188: =元データ!D188+C$3 -> 0.02 | D188: =元データ!E188+D$3 -> 0.15 | E188: =元データ!F188+E$3 -> 0.288 | F188: =元データ!G188+F$3 -> 0.382 | G188: =元データ!H188+G$3 -> 0.514 | H188: =元データ!I188+H$3 -> 0.368 | J188: 533 | K188: =元データ!L188+K$3 -> 0.003000005552 | L188: =元データ!M188+L$3 -> -0.006000002424 | M188: =元データ!N188+M$3 -> 0.002000002213
B189: 534 | C189: =元データ!D189+C$3 -> 0.02 | D189: =元データ!E189+D$3 -> 0.146 | E189: =元データ!F189+E$3 -> 0.276 | F189: =元データ!G189+F$3 -> 0.366 | G189: =元データ!H189+G$3 -> 0.496 | H189: =元データ!I189+H$3 -> 0.354 | J189: 534 | K189: =元データ!L189+K$3 -> 0.005000006876 | L189: =元データ!M189+L$3 -> -0.004999990599 | M189: =元データ!N189+M$3 -> 0.004000003502
B190: 535 | C190: =元データ!D190+C$3 -> 0.02 | D190: =元データ!E190+D$3 -> 0.14 | E190: =元データ!F190+E$3 -> 0.266 | F190: =元データ!G190+F$3 -> 0.352 | G190: =元データ!H190+G$3 -> 0.476 | H190: =元データ!I190+H$3 -> 0.338 | J190: 535 | K190: =元データ!L190+K$3 -> 0.003000005251 | L190: =元データ!M190+L$3 -> -0.006999995965 | M190: =元データ!N190+M$3 -> 0.002999993626
B191: 536 | C191: =元データ!D191+C$3 -> 0.02 | D191: =元データ!E191+D$3 -> 0.136 | E191: =元データ!F191+E$3 -> 0.254 | F191: =元データ!G191+F$3 -> 0.338 | G191: =元データ!H191+G$3 -> 0.456 | H191: =元データ!I191+H$3 -> 0.326 | J191: 536 | K191: =元データ!L191+K$3 -> 0.002000003772 | L191: =元データ!M191+L$3 -> -0.006999998551 | M191: =元データ!N191+M$3 -> 0.0009999965437
B192: 537 | C192: =元データ!D192+C$3 -> 0.02 | D192: =元データ!E192+D$3 -> 0.13 | E192: =元データ!F192+E$3 -> 0.244 | F192: =元データ!G192+F$3 -> 0.324 | G192: =元データ!H192+G$3 -> 0.436 | H192: =元データ!I192+H$3 -> 0.312 | J192: 537 | K192: =元データ!L192+K$3 -> 0.001999996842 | L192: =元データ!M192+L$3 -> -0.007000000398 | M192: =元データ!N192+M$3 -> 0.0009999958778
B193: 538 | C193: =元データ!D193+C$3 -> 0.02 | D193: =元データ!E193+D$3 -> 0.122 | E193: =元データ!F193+E$3 -> 0.234 | F193: =元データ!G193+F$3 -> 0.308 | G193: =元データ!H193+G$3 -> 0.418 | H193: =元データ!I193+H$3 -> 0.296 | J193: 538 | K193: =元データ!L193+K$3 -> 0.001000008486 | L193: =元データ!M193+L$3 -> -0.007999990964 | M193: =元データ!N193+M$3 -> 0.0009999976729
B194: 539 | C194: =元データ!D194+C$3 -> 0.02 | D194: =元データ!E194+D$3 -> 0.12 | E194: =元データ!F194+E$3 -> 0.222 | F194: =元データ!G194+F$3 -> 0.294 | G194: =元データ!H194+G$3 -> 0.4 | H194: =元データ!I194+H$3 -> 0.282 | J194: 539 | K194: =元データ!L194+K$3 -> 0.001000003348 | L194: =元データ!M194+L$3 -> -0.006999997704 | M194: =元データ!N194+M$3 -> 7.923245809e-10
B195: 540 | C195: =元データ!D195+C$3 -> 0.02 | D195: =元データ!E195+D$3 -> 0.112 | E195: =元データ!F195+E$3 -> 0.212 | F195: =元データ!G195+F$3 -> 0.28 | G195: =元データ!H195+G$3 -> 0.38 | H195: =元データ!I195+H$3 -> 0.268 | J195: 540 | K195: =元データ!L195+K$3 -> -1.124102984e-09 | L195: =元データ!M195+L$3 -> -0.006999994912 | M195: =元データ!N195+M$3 -> 0.001000000988
B196: 541 | C196: =元データ!D196+C$3 -> 0.02 | D196: =元データ!E196+D$3 -> 0.11 | E196: =元データ!F196+E$3 -> 0.202 | F196: =元データ!G196+F$3 -> 0.264 | G196: =元データ!H196+G$3 -> 0.362 | H196: =元データ!I196+H$3 -> 0.256 | J196: 541 | K196: =元データ!L196+K$3 -> 0.001000007897 | L196: =元データ!M196+L$3 -> -0.007000002708 | M196: =元データ!N196+M$3 -> 0.001999993243
B197: 542 | C197: =元データ!D197+C$3 -> 0.02 | D197: =元データ!E197+D$3 -> 0.102 | E197: =元データ!F197+E$3 -> 0.192 | F197: =元データ!G197+F$3 -> 0.25 | G197: =元データ!H197+G$3 -> 0.344 | H197: =元データ!I197+H$3 -> 0.242 | J197: 542 | K197: =元データ!L197+K$3 -> 0.001000008845 | L197: =元データ!M197+L$3 -> -0.006999989602 | M197: =元データ!N197+M$3 -> 0.0009999906033
B198: 543 | C198: =元データ!D198+C$3 -> 0.02 | D198: =元データ!E198+D$3 -> 0.09833333333 | E198: =元データ!F198+E$3 -> 0.1816666667 | F198: =元データ!G198+F$3 -> 0.2366666667 | G198: =元データ!H198+G$3 -> 0.325 | H198: =元データ!I198+H$3 -> 0.2266666667 | J198: 543 | K198: =元データ!L198+K$3 -> -0.0009999997145 | L198: =元データ!M198+L$3 -> -0.007999999535 | M198: =元データ!N198+M$3 -> -5.134409979e-09
B199: 544 | C199: =元データ!D199+C$3 -> 0.02 | D199: =元データ!E199+D$3 -> 0.09 | E199: =元データ!F199+E$3 -> 0.172 | F199: =元データ!G199+F$3 -> 0.222 | G199: =元データ!H199+G$3 -> 0.306 | H199: =元データ!I199+H$3 -> 0.214 | J199: 544 | K199: =元データ!L199+K$3 -> -0.001000001045 | L199: =元データ!M199+L$3 -> -0.008999998587 | M199: =元データ!N199+M$3 -> -0.001000004011
B200: 545 | C200: =元データ!D200+C$3 -> 0.02 | D200: =元データ!E200+D$3 -> 0.09 | E200: =元データ!F200+E$3 -> 0.162 | F200: =元データ!G200+F$3 -> 0.212 | G200: =元データ!H200+G$3 -> 0.29 | H200: =元データ!I200+H$3 -> 0.202 | J200: 545 | K200: =元データ!L200+K$3 -> 7.253924864e-09 | L200: =元データ!M200+L$3 -> -0.007999989807 | M200: =元データ!N200+M$3 -> -1.004758913e-08
... 205 more rows

Sheet 元データ
A1: 元データ（波長較正、規格・平準化済み）
A2: D2輝線波長 | B2: 656.1 | C2: ←ここに光源の656 nm付近の輝線の測定値を入力する | I2: マクロ「データ読み込み」を利用して、元のデータの波長較正、波長の規格化、光強度の平準化を行う
C3: Fe 定量 | K3: Al定量
C4: 波長/nm | D4: Fe00.txt | E4: Fe01.txt | F4: Fe02.txt | G4: Fe03.txt | H4: Fe04.txt | I4: FeX.txt | K4: 波長/nm | L4: blanc.txt | M4: AlStd.txt | N4: AlSample.txt
C5: 350 | D5: 0.205 | E5: 0.13 | F5: 0.1 | G5: 0.06 | H5: 0.09 | I5: 0.09 | K5: 350 | L5: 1.647999894 | M5: 1.748000076 | N5: 1.741999771
C6: 351 | D6: 0.2 | E6: 0.128 | F6: 0.1 | G6: 0.06 | H6: 0.088 | I6: 0.088 | K6: 351 | L6: 1.642000096 | M6: 1.747999888 | N6: 1.759999855
C7: 352 | D7: 0.192 | E7: 0.12 | F7: 0.098 | G7: 0.06 | H7: 0.08 | I7: 0.08 | K7: 352 | L7: 1.605999962 | M7: 1.750999683 | N7: 1.758000058
C8: 353 | D8: 0.182 | E8: 0.114 | F8: 0.09 | G8: 0.052 | H8: 0.08 | I8: 0.08 | K8: 353 | L8: 1.551999829 | M8: 1.710000233 | N8: 1.709000309
C9: 354 | D9: 0.1725 | E9: 0.11 | F9: 0.0875 | G9: 0.05 | H9: 0.08 | I9: 0.07 | K9: 354 | L9: 1.43300008 | M9: 1.619000177 | N9: 1.624999993
C10: 355 | D10: 0.164 | E10: 0.1 | F10: 0.08 | G10: 0.05 | H10: 0.08 | I10: 0.07 | K10: 355 | L10: 1.302000023 | M10: 1.538000195 | N10: 1.570000085
C11: 356 | D11: 0.154 | E11: 0.096 | F11: 0.076 | G11: 0.044 | H11: 0.08 | I11: 0.062 | K11: 356 | L11: 1.151999929 | M11: 1.439000119 | N11: 1.484000006
C12: 357 | D12: 0.144 | E12: 0.09 | F12: 0.07 | G12: 0.04 | H12: 0.074 | I12: 0.06 | K12: 357 | L12: 1.021000044 | M12: 1.341999929 | N12: 1.396999984
C13: 358 | D13: 0.1325 | E13: 0.08 | F13: 0.065 | G13: 0.04 | H13: 0.07 | I13: 0.055 | K13: 358 | L13: 0.8640000273 | M13: 1.224999958 | N13: 1.294000046
C14: 359 | D14: 0.124 | E14: 0.076 | F14: 0.06 | G14: 0.04 | H14: 0.07 | I14: 0.05 | K14: 359 | L14: 0.7179999967 | M14: 1.11100003 | N14: 1.179999979
C15: 360 | D15: 0.116 | E15: 0.07 | F15: 0.058 | G15: 0.032 | H15: 0.07 | I15: 0.05 | K15: 360 | L15: 0.5910000006 | M15: 1.002999948 | N15: 1.071999999
C16: 361 | D16: 0.106 | E16: 0.064 | F16: 0.05 | G16: 0.03 | H16: 0.07 | I16: 0.044 | K16: 361 | L16: 0.4840000158 | M16: 0.9120000137 | N16: 0.9869999929
C17: 362 | D17: 0.1 | E17: 0.06 | F17: 0.05 | G17: 0.03 | H17: 0.07 | I17: 0.04 | K17: 362 | L17: 0.407000015 | M17: 0.8530000085 | N17: 0.9310000204
C18: 363 | D18: 0.092 | E18: 0.06 | F18: 0.05 | G18: 0.03 | H18: 0.07 | I18: 0.04 | K18: 363 | L18: 0.3270000098 | M18: 0.7920000336 | N18: 0.8669999998
C19: 364 | D19: 0.088 | E19: 0.052 | F19: 0.044 | G19: 0.03 | H19: 0.07 | I19: 0.04 | K19: 364 | L19: 0.2629999984 | M19: 0.7430000281 | N19: 0.8180000247
C20: 365 | D20: 0.08 | E20: 0.05 | F20: 0.04 | G20: 0.03 | H20: 0.072 | I20: 0.04 | K20: 365 | L20: 0.2110000081 | M20: 0.7040000175 | N20: 0.7819999769
C21: 366 | D21: 0.078 | E21: 0.05 | F21: 0.04 | G21: 0.03 | H21: 0.08 | I21: 0.04 | K21: 366 | L21: 0.1690000073 | M21: 0.6739999949 | N21: 0.7519999658
C22: 367 | D22: 0.07 | E22: 0.05 | F22: 0.04 | G22: 0.03 | H22: 0.08 | I22: 0.04 | K22: 367 | L22: 0.1350000007 | M22: 0.6520000043 | N22: 0.7329999786
C23: 368 | D23: 0.07 | E23: 0.05 | F23: 0.04 | G23: 0.03 | H23: 0.08 | I23: 0.04 | K23: 368 | L23: 0.1140000047 | M23: 0.6380000167 | N23: 0.719999967
C24: 369 | D24: 0.07 | E24: 0.04 | F24: 0.04 | G24: 0.03 | H24: 0.08 | I24: 0.04 | K24: 369 | L24: 0.09299999584 | M24: 0.6270000097 | N24: 0.7079999652
C25: 370 | D25: 0.062 | E25: 0.04 | F25: 0.04 | G25: 0.04 | H25: 0.088 | I25: 0.04 | K25: 370 | L25: 0.07500000949 | M25: 0.6159999768 | N25: 0.7000000139
C26: 371 | D26: 0.06 | E26: 0.04 | F26: 0.04 | G26: 0.04 | H26: 0.09 | I26: 0.04 | K26: 371 | L26: 0.0609999973 | M26: 0.6090000211 | N26: 0.6939999946
C27: 372 | D27: 0.06 | E27: 0.04 | F27: 0.04 | G27: 0.04 | H27: 0.09 | I27: 0.046 | K27: 372 | L27: 0.04999999744 | M27: 0.6060000005 | N27: 0.6899999713
C28: 373 | D28: 0.06 | E28: 0.04 | F28: 0.05 | G28: 0.04 | H28: 0.096 | I28: 0.05 | K28: 373 | L28: 0.04399999769 | M28: 0.6070000252 | N28: 0.6909999748
C29: 374 | D29: 0.06 | E29: 0.04 | F29: 0.05 | G29: 0.05 | H29: 0.1 | I29: 0.05 | K29: 374 | L29: 0.03799999827 | M29: 0.608000001 | N29: 0.694000004
C30: 375 | D30: 0.06 | E30: 0.04 | F30: 0.05 | G30: 0.05 | H30: 0.104 | I30: 0.05 | K30: 375 | L30: 0.03300000017 | M30: 0.6099999957 | N30: 0.6950000013
C31: 376 | D31: 0.06 | E31: 0.0475 | F31: 0.05 | G31: 0.05 | H31: 0.11 | I31: 0.055 | K31: 376 | L31: 0.02800000682 | M31: 0.6099999917 | N31: 0.695000008
C32: 377 | D32: 0.06 | E32: 0.05 | F32: 0.054 | G32: 0.058 | H32: 0.11 | I32: 0.06 | K32: 377 | L32: 0.02600000452 | M32: 0.612000003 | N32: 0.696999973
C33: 378 | D33: 0.054 | E33: 0.05 | F33: 0.06 | G33: 0.06 | H33: 0.12 | I33: 0.06 | K33: 378 | L33: 0.02299999986 | M33: 0.6139999799 | N33: 0.6970000104
C34: 379 | D34: 0.05 | E34: 0.05 | F34: 0.06 | G34: 0.062 | H34: 0.12 | I34: 0.07 | K34: 379 | L34: 0.02100000507 | M34: 0.6160000218 | N34: 0.6979999991
C35: 380 | D35: 0.05 | E35: 0.05 | F35: 0.06 | G35: 0.07 | H35: 0.13 | I35: 0.07 | K35: 380 | L35: 0.01900000963 | M35: 0.614999999 | N35: 0.6989999977
C36: 381 | D36: 0.05 | E36: 0.05 | F36: 0.065 | G36: 0.07 | H36: 0.1325 | I36: 0.0725 | K36: 381 | L36: 0.01800000794 | M36: 0.6149999813 | N36: 0.7010000182
C37: 382 | D37: 0.05 | E37: 0.05 | F37: 0.07 | G37: 0.078 | H37: 0.14 | I37: 0.08 | K37: 382 | L37: 0.01599999649 | M37: 0.6130000306 | N37: 0.6989999707
C38: 383 | D38: 0.05 | E38: 0.05 | F38: 0.07 | G38: 0.08 | H38: 0.144 | I38: 0.082 | K38: 383 | L38: 0.01500000268 | M38: 0.6120000116 | N38: 0.6960000292
C39: 384 | D39: 0.05 | E39: 0.058 | F39: 0.074 | G39: 0.088 | H39: 0.15 | I39: 0.09 | K39: 384 | L39: 0.01400000405 | M39: 0.6150000293 | N39: 0.6949999634
C40: 385 | D40: 0.05 | E40: 0.06 | F40: 0.08 | G40: 0.09 | H40: 0.158 | I40: 0.09 | K40: 385 | L40: 0.01300000024 | M40: 0.6160000232 | N40: 0.6959999893
C41: 386 | D41: 0.05 | E41: 0.06 | F41: 0.08 | G41: 0.1 | H41: 0.1625 | I41: 0.1 | K41: 386 | L41: 0.01500000478 | M41: 0.6159999791 | N41: 0.697000001
C42: 387 | D42: 0.05 | E42: 0.06 | F42: 0.088 | G42: 0.1 | H42: 0.17 | I42: 0.1 | K42: 387 | L42: 0.01500000753 | M42: 0.6139999753 | N42: 0.6940000337
C43: 388 | D43: 0.05 | E43: 0.06 | F43: 0.09 | G43: 0.108 | H43: 0.178 | I43: 0.106 | K43: 388 | L43: 0.01499999743 | M43: 0.6110000273 | N43: 0.6929999702
C44: 389 | D44: 0.05 | E44: 0.06 | F44: 0.092 | G44: 0.11 | H44: 0.182 | I44: 0.11 | K44: 389 | L44: 0.01400000553 | M44: 0.6099999884 | N44: 0.6919999674
C45: 390 | D45: 0.05 | E45: 0.066 | F45: 0.1 | G45: 0.12 | H45: 0.19 | I45: 0.12 | K45: 390 | L45: 0.01200000152 | M45: 0.6070000068 | N45: 0.6860000207
C46: 391 | D46: 0.05 | E46: 0.07 | F46: 0.1 | G46: 0.1225 | H46: 0.2 | I46: 0.1225 | K46: 391 | L46: 0.01299999757 | M46: 0.6019999769 | N46: 0.6820000015
C47: 392 | D47: 0.05 | E47: 0.07 | F47: 0.108 | G47: 0.13 | H47: 0.206 | I47: 0.13 | K47: 392 | L47: 0.01300000251 | M47: 0.5979999887 | N47: 0.6760000316
C48: 393 | D48: 0.05 | E48: 0.07 | F48: 0.11 | G48: 0.134 | H48: 0.212 | I48: 0.132 | K48: 393 | L48: 0.01300000297 | M48: 0.5920000256 | N48: 0.6699999671
C49: 394 | D49: 0.05 | E49: 0.07 | F49: 0.112 | G49: 0.14 | H49: 0.22 | I49: 0.14 | K49: 394 | L49: 0.0139999979 | M49: 0.5839999877 | N49: 0.6639999841
C50: 395 | D50: 0.05 | E50: 0.074 | F50: 0.12 | G50: 0.148 | H50: 0.23 | I50: 0.144 | K50: 395 | L50: 0.0140000061 | M50: 0.5789999756 | N50: 0.6549999661
C51: 396 | D51: 0.05 | E51: 0.08 | F51: 0.12 | G51: 0.155 | H51: 0.2375 | I51: 0.15 | K51: 396 | L51: 0.01400000562 | M51: 0.5730000027 | N51: 0.6460000322
C52: 397 | D52: 0.05 | E52: 0.08 | F52: 0.13 | G52: 0.16 | H52: 0.244 | I52: 0.158 | K52: 397 | L52: 0.01400000981 | M52: 0.5649999803 | N52: 0.6359999668
C53: 398 | D53: 0.05 | E53: 0.08 | F53: 0.13 | G53: 0.166 | H53: 0.25 | I53: 0.16 | K53: 398 | L53: 0.01400001015 | M53: 0.5560000028 | N53: 0.626000007
C54: 399 | D54: 0.05 | E54: 0.08 | F54: 0.134 | G54: 0.17 | H54: 0.26 | I54: 0.17 | K54: 399 | L54: 0.01400000458 | M54: 0.5450000138 | N54: 0.6170000283
C55: 400 | D55: 0.05 | E55: 0.086 | F55: 0.14 | G55: 0.18 | H55: 0.268 | I55: 0.176 | K55: 400 | L55: 0.01299999933 | M55: 0.5330000218 | N55: 0.6060000049
C56: 401 | D56: 0.05 | E56: 0.09 | F56: 0.146 | G56: 0.186 | H56: 0.278 | I56: 0.18 | K56: 401 | L56: 0.01399999632 | M56: 0.5220000023 | N56: 0.5909999728
C57: 402 | D57: 0.05 | E57: 0.09 | F57: 0.15 | G57: 0.19 | H57: 0.285 | I57: 0.1875 | K57: 402 | L57: 0.01300000013 | M57: 0.512000024 | N57: 0.5800000072
C58: 403 | D58: 0.05 | E58: 0.09 | F58: 0.15 | G58: 0.198 | H58: 0.292 | I58: 0.19 | K58: 403 | L58: 0.0119999993 | M58: 0.5020000111 | N58: 0.5680000274
C59: 404 | D59: 0.05 | E59: 0.092 | F59: 0.16 | G59: 0.204 | H59: 0.302 | I59: 0.2 | K59: 404 | L59: 0.01299999957 | M59: 0.4930000025 | N59: 0.5579999836
C60: 405 | D60: 0.05 | E60: 0.1 | F60: 0.16 | G60: 0.21 | H60: 0.31 | I60: 0.204 | K60: 405 | L60: 0.012999999 | M60: 0.4779999826 | N60: 0.543999998
C61: 406 | D61: 0.05 | E61: 0.1 | F61: 0.17 | G61: 0.218 | H61: 0.318 | I61: 0.21 | K61: 406 | L61: 0.01199999959 | M61: 0.4649999818 | N61: 0.5269999962
C62: 407 | D62: 0.05 | E62: 0.1 | F62: 0.17 | G62: 0.2225 | H62: 0.3275 | I62: 0.22 | K62: 407 | L62: 0.01299999982 | M62: 0.4510000169 | N62: 0.5120000123
C63: 408 | D63: 0.05 | E63: 0.1 | F63: 0.178 | G63: 0.23 | H63: 0.332 | I63: 0.222 | K63: 408 | L63: 0.01300001007 | M63: 0.4390000107 | N63: 0.4979999881
C64: 409 | D64: 0.05 | E64: 0.108 | F64: 0.18 | G64: 0.234 | H64: 0.34 | I64: 0.23 | K64: 409 | L64: 0.01399999612 | M64: 0.4289999905 | N64: 0.4869999907
C65: 410 | D65: 0.05 | E65: 0.11 | F65: 0.186 | G65: 0.24 | H65: 0.348 | I65: 0.232 | K65: 410 | L65: 0.01400000786 | M65: 0.4159999957 | N65: 0.4730000225
C66: 411 | D66: 0.05 | E66: 0.11 | F66: 0.19 | G66: 0.248 | H66: 0.356 | I66: 0.24 | K66: 411 | L66: 0.01400000219 | M66: 0.4009999984 | N66: 0.4569999809
C67: 412 | D67: 0.05 | E67: 0.11 | F67: 0.19 | G67: 0.25 | H67: 0.362 | I67: 0.248 | K67: 412 | L67: 0.01300000231 | M67: 0.3850000132 | N67: 0.4409999752
C68: 413 | D68: 0.05 | E68: 0.11 | F68: 0.2 | G68: 0.26 | H68: 0.37 | I68: 0.25 | K68: 413 | L68: 0.01300000812 | M68: 0.3700000233 | N68: 0.4239999977
C69: 414 | D69: 0.05 | E69: 0.112 | F69: 0.2 | G69: 0.26 | H69: 0.378 | I69: 0.256 | K69: 414 | L69: 0.01399999589 | M69: 0.3559999983 | N69: 0.4069999952
C70: 415 | D70: 0.05 | E70: 0.12 | F70: 0.202 | G70: 0.27 | H70: 0.382 | I70: 0.26 | K70: 415 | L70: 0.01200000448 | M70: 0.3400000123 | N70: 0.3900000052
C71: 416 | D71: 0.05 | E71: 0.12 | F71: 0.21 | G71: 0.272 | H71: 0.39 | I71: 0.266 | K71: 416 | L71: 0.01200000646 | M71: 0.3279999941 | N71: 0.3780000014
C72: 417 | D72: 0.05 | E72: 0.12 | F72: 0.21 | G72: 0.28 | H72: 0.398 | I72: 0.27 | K72: 417 | L72: 0.01199999498 | M72: 0.3149999865 | N72: 0.3630000091
C73: 418 | D73: 0.05 | E73: 0.12 | F73: 0.218 | G73: 0.284 | H73: 0.402 | I73: 0.278 | K73: 418 | L73: 0.01400000589 | M73: 0.3010000021 | N73: 0.3459999988
C74: 419 | D74: 0.04 | E74: 0.12 | F74: 0.22 | G74: 0.29 | H74: 0.41 | I74: 0.28 | K74: 419 | L74: 0.01300000518 | M74: 0.287999987 | N74: 0.3290000033
C75: 420 | D75: 0.04 | E75: 0.1225 | F75: 0.22 | G75: 0.29 | H75: 0.4175 | I75: 0.285 | K75: 420 | L75: 0.01300000216 | M75: 0.2739999914 | N75: 0.3150000076
C76: 421 | D76: 0.048 | E76: 0.13 | F76: 0.224 | G76: 0.3 | H76: 0.42 | I76: 0.29 | K76: 421 | L76: 0.01300001024 | M76: 0.2589999997 | N76: 0.2989999808
C77: 422 | D77: 0.042 | E77: 0.13 | F77: 0.23 | G77: 0.3 | H77: 0.426 | I77: 0.29 | K77: 422 | L77: 0.01299999682 | M77: 0.2449999925 | N77: 0.2839999899
C78: 423 | D78: 0.04 | E78: 0.13 | F78: 0.23 | G78: 0.31 | H78: 0.432 | I78: 0.3 | K78: 423 | L78: 0.01500000968 | M78: 0.231999993 | N78: 0.2700000117
C79: 424 | D79: 0.044 | E79: 0.13 | F79: 0.238 | G79: 0.312 | H79: 0.44 | I79: 0.3 | K79: 424 | L79: 0.01400000789 | M79: 0.2210000046 | N79: 0.2590000039
C80: 425 | D80: 0.04 | E80: 0.13 | F80: 0.24 | G80: 0.32 | H80: 0.444 | I80: 0.31 | K80: 425 | L80: 0.01400001033 | M80: 0.2079999899 | N80: 0.2440000028
C81: 426 | D81: 0.04 | E81: 0.135 | F81: 0.24 | G81: 0.32 | H81: 0.45 | I81: 0.31 | K81: 426 | L81: 0.01399999533 | M81: 0.1940000129 | N81: 0.2299999941
C82: 427 | D82: 0.04 | E82: 0.14 | F82: 0.246 | G82: 0.326 | H82: 0.456 | I82: 0.316 | K82: 427 | L82: 0.01400000342 | M82: 0.1819999909 | N82: 0.2159999812
C83: 428 | D83: 0.04 | E83: 0.14 | F83: 0.25 | G83: 0.33 | H83: 0.46 | I83: 0.32 | K83: 428 | L83: 0.01300000143 | M83: 0.1699999947 | N83: 0.1999999881
C84: 429 | D84: 0.04 | E84: 0.14 | F84: 0.25 | G84: 0.336 | H84: 0.47 | I84: 0.32 | K84: 429 | L84: 0.0129999992 | M84: 0.159000006 | N84: 0.1890000011
C85: 430 | D85: 0.04 | E85: 0.14 | F85: 0.252 | G85: 0.34 | H85: 0.47 | I85: 0.33 | K85: 430 | L85: 0.01300000202 | M85: 0.1469999996 | N85: 0.1769999951
C86: 431 | D86: 0.04 | E86: 0.14 | F86: 0.26 | G86: 0.34 | H86: 0.478 | I86: 0.33 | K86: 431 | L86: 0.01499999856 | M86: 0.1380000035 | N86: 0.1659999874
C87: 432 | D87: 0.04 | E87: 0.14 | F87: 0.26 | G87: 0.35 | H87: 0.48 | I87: 0.336 | K87: 432 | L87: 0.01499999624 | M87: 0.1300000087 | N87: 0.1569999873
C88: 433 | D88: 0.04 | E88: 0.14 | F88: 0.26 | G88: 0.35 | H88: 0.4875 | I88: 0.34 | K88: 433 | L88: 0.01500001052 | M88: 0.1189999943 | N88: 0.1459999828
C89: 434 | D89: 0.04 | E89: 0.148 | F89: 0.264 | G89: 0.352 | H89: 0.49 | I89: 0.34 | K89: 434 | L89: 0.015000012 | M89: 0.110000015 | N89: 0.1359999855
C90: 435 | D90: 0.04 | E90: 0.15 | F90: 0.27 | G90: 0.36 | H90: 0.498 | I90: 0.344 | K90: 435 | L90: 0.01500000424 | M90: 0.1010000148 | N90: 0.1259999996
C91: 436 | D91: 0.04 | E91: 0.15 | F91: 0.27 | G91: 0.36 | H91: 0.5 | I91: 0.35 | K91: 436 | L91: 0.01500000371 | M91: 0.09399999795 | N91: 0.1159999842
C92: 437 | D92: 0.04 | E92: 0.15 | F92: 0.27 | G92: 0.366 | H92: 0.502 | I92: 0.35 | K92: 437 | L92: 0.01300000758 | M92: 0.08500000107 | N92: 0.1070000013
C93: 438 | D93: 0.04 | E93: 0.15 | F93: 0.276 | G93: 0.37 | H93: 0.51 | I93: 0.356 | K93: 438 | L93: 0.01400000815 | M93: 0.07900000698 | N93: 0.1009999894
C94: 439 | D94: 0.04 | E94: 0.15 | F94: 0.28 | G94: 0.37 | H94: 0.51 | I94: 0.36 | K94: 439 | L94: 0.01399999512 | M94: 0.07099999419 | N94: 0.09399999625
C95: 440 | D95: 0.04 | E95: 0.15 | F95: 0.28 | G95: 0.38 | H95: 0.52 | I95: 0.36 | K95: 440 | L95: 0.01300000046 | M95: 0.06200001219 | N95: 0.08500000209
C96: 441 | D96: 0.04 | E96: 0.15 | F96: 0.28 | G96: 0.38 | H96: 0.52 | I96: 0.36 | K96: 441 | L96: 0.01300000774 | M96: 0.05600000703 | N96: 0.07800000675
C97: 442 | D97: 0.04 | E97: 0.15 | F97: 0.28 | G97: 0.38 | H97: 0.52 | I97: 0.368 | K97: 442 | L97: 0.01300001192 | M97: 0.05099999358 | N97: 0.07400000737
C98: 443 | D98: 0.04 | E98: 0.158 | F98: 0.288 | G98: 0.382 | H98: 0.528 | I98: 0.37 | K98: 443 | L98: 0.01299999817 | M98: 0.04600000041 | N98: 0.06799999837
C99: 444 | D99: 0.04 | E99: 0.16 | F99: 0.29 | G99: 0.388 | H99: 0.53 | I99: 0.37 | K99: 444 | L99: 0.01299999566 | M99: 0.04200001145 | N99: 0.06200000185
C100: 445 | D100: 0.04 | E100: 0.16 | F100: 0.29 | G100: 0.39 | H100: 0.53 | I100: 0.374 | K100: 445 | L100: 0.01300000623 | M100: 0.03800000075 | N100: 0.0570000002
C101: 446 | D101: 0.04 | E101: 0.16 | F101: 0.29 | G101: 0.39 | H101: 0.54 | I101: 0.38 | K101: 446 | L101: 0.0139999969 | M101: 0.03499999653 | N101: 0.05399999314
C102: 447 | D102: 0.04 | E102: 0.16 | F102: 0.29 | G102: 0.39 | H102: 0.54 | I102: 0.38 | K102: 447 | L102: 0.01500001215 | M102: 0.03200000829 | N102: 0.0500000034
C103: 448 | D103: 0.04 | E103: 0.16 | F103: 0.298 | G103: 0.396 | H103: 0.542 | I103: 0.38 | K103: 448 | L103: 0.01599999652 | M103: 0.02900001012 | N103: 0.04599999453
C104: 449 | D104: 0.04 | E104: 0.16 | F104: 0.3 | G104: 0.4 | H104: 0.55 | I104: 0.3875 | K104: 449 | L104: 0.01500001153 | M104: 0.02499999441 | N104: 0.04099999426
C105: 450 | D105: 0.04 | E105: 0.16 | F105: 0.3 | G105: 0.402 | H105: 0.55 | I105: 0.39 | K105: 450 | L105: 0.01499999686 | M105: 0.02200000372 | N105: 0.03699998801
C106: 451 | D106: 0.04 | E106: 0.16 | F106: 0.3 | G106: 0.41 | H106: 0.55 | I106: 0.39 | K106: 451 | L106: 0.01500001282 | M106: 0.01900001366 | N106: 0.03399998533
C107: 452 | D107: 0.04 | E107: 0.16 | F107: 0.3 | G107: 0.41 | H107: 0.558 | I107: 0.39 | K107: 452 | L107: 0.0149999983 | M107: 0.01699999945 | N107: 0.03399998966
C108: 453 | D108: 0.04 | E108: 0.162 | F108: 0.306 | G108: 0.41 | H108: 0.56 | I108: 0.398 | K108: 453 | L108: 0.01599999769 | M108: 0.01600000933 | N108: 0.03200000876
C109: 454 | D109: 0.04 | E109: 0.17 | F109: 0.31 | G109: 0.412 | H109: 0.564 | I109: 0.4 | K109: 454 | L109: 0.0160000113 | M109: 0.01400000321 | N109: 0.02999998508
C110: 455 | D110: 0.04 | E110: 0.17 | F110: 0.31 | G110: 0.42 | H110: 0.57 | I110: 0.4 | K110: 455 | L110: 0.01599999351 | M110: 0.01100001054 | N110: 0.02699999139
C111: 456 | D111: 0.04 | E111: 0.17 | F111: 0.312 | G111: 0.42 | H111: 0.576 | I111: 0.408 | K111: 456 | L111: 0.01599999857 | M111: 0.01000000384 | N111: 0.0249999916
C112: 457 | D112: 0.04 | E112: 0.17 | F112: 0.32 | G112: 0.43 | H112: 0.58 | I112: 0.41 | K112: 457 | L112: 0.01600000939 | M112: 0.0090000092 | N112: 0.02399999978
C113: 458 | D113: 0.04 | E113: 0.17 | F113: 0.32 | G113: 0.43 | H113: 0.59 | I113: 0.416 | K113: 458 | L113: 0.01299999479 | M113: 0.004999999604 | N113: 0.02099999285
C114: 459 | D114: 0.04 | E114: 0.17 | F114: 0.32 | G114: 0.435 | H114: 0.5925 | I114: 0.42 | K114: 459 | L114: 0.0130000095 | M114: 0.005000002054 | N114: 0.01899998886
C115: 460 | D115: 0.04 | E115: 0.17 | F115: 0.326 | G115: 0.44 | H115: 0.6 | I115: 0.422 | K115: 460 | L115: 0.01400001024 | M115: 0.003999997234 | N115: 0.01799999539
C116: 461 | D116: 0.04 | E116: 0.18 | F116: 0.33 | G116: 0.444 | H116: 0.6 | I116: 0.43 | K116: 461 | L116: 0.0149999947 | M116: 0.003000011487 | N116: 0.01800000204
C117: 462 | D117: 0.04 | E117: 0.18 | F117: 0.332 | G117: 0.45 | H117: 0.608 | I117: 0.432 | K117: 462 | L117: 0.01399999514 | M117: 0.004000010867 | N117: 0.01699999385
C118: 463 | D118: 0.04 | E118: 0.18 | F118: 0.34 | G118: 0.456 | H118: 0.616 | I118: 0.44 | K118: 463 | L118: 0.01599999646 | M118: 0.005000008475 | N118: 0.01900000029
C119: 464 | D119: 0.04 | E119: 0.18 | F119: 0.34 | G119: 0.46 | H119: 0.622 | I119: 0.44 | K119: 464 | L119: 0.01599999403 | M119: 0.0029999962 | N119: 0.01699999728
C120: 465 | D120: 0.04 | E120: 0.18 | F120: 0.34 | G120: 0.466 | H120: 0.63 | I120: 0.45 | K120: 465 | L120: 0.01500001119 | M120: 0.00100000635 | N120: 0.01599999606
C121: 466 | D121: 0.04 | E121: 0.186 | F121: 0.346 | G121: 0.47 | H121: 0.636 | I121: 0.45 | K121: 466 | L121: 0.01500001034 | M121: -5.941078069e-09 | N121: 0.01500000097
C122: 467 | D122: 0.04 | E122: 0.19 | F122: 0.35 | G122: 0.47 | H122: 0.64 | I122: 0.456 | K122: 467 | L122: 0.01300000452 | M122: -2.765023183e-09 | N122: 0.01400000166
C123: 468 | D123: 0.04 | E123: 0.19 | F123: 0.35 | G123: 0.478 | H123: 0.642 | I123: 0.46 | K123: 468 | L123: 0.01299999778 | M123: -0.001000001995 | N123: 0.01299998643
C124: 469 | D124: 0.04 | E124: 0.19 | F124: 0.354 | G124: 0.48 | H124: 0.65 | I124: 0.462 | K124: 469 | L124: 0.01300000889 | M124: -0.001000002247 | N124: 0.01300000365
C125: 470 | D125: 0.04 | E125: 0.19 | F125: 0.36 | G125: 0.4875 | H125: 0.6525 | I125: 0.47 | K125: 470 | L125: 0.01300000358 | M125: 9.340534924e-09 | N125: 0.01199999419
C126: 471 | D126: 0.04 | E126: 0.19 | F126: 0.36 | G126: 0.49 | H126: 0.66 | I126: 0.47 | K126: 471 | L126: 0.01300000911 | M126: 1.119453463e-08 | N126: 0.0120000039
C127: 472 | D127: 0.04 | E127: 0.19 | F127: 0.366 | G127: 0.494 | H127: 0.668 | I127: 0.478 | K127: 472 | L127: 0.01299999844 | M127: 3.643888039e-09 | N127: 0.01199998958
C128: 473 | D128: 0.04 | E128: 0.198 | F128: 0.37 | G128: 0.5 | H128: 0.672 | I128: 0.48 | K128: 473 | L128: 0.01400000847 | M128: -2.465567632e-09 | N128: 0.01199998754
C129: 474 | D129: 0.04 | E129: 0.2 | F129: 0.37 | G129: 0.5 | H129: 0.68 | I129: 0.482 | K129: 474 | L129: 0.01400000591 | M129: -0.002000003115 | N129: 0.01100000595
C130: 475 | D130: 0.04 | E130: 0.2 | F130: 0.37 | G130: 0.508 | H130: 0.68 | I130: 0.49 | K130: 475 | L130: 0.01400000317 | M130: -0.002000002555 | N130: 0.01100000537
C131: 476 | D131: 0.04 | E131: 0.2 | F131: 0.37 | G131: 0.51 | H131: 0.68 | I131: 0.49 | K131: 476 | L131: 0.01300000826 | M131: -0.001999988253 | N131: 0.009999989173
C132: 477 | D132: 0.04 | E132: 0.2 | F132: 0.37 | G132: 0.51 | H132: 0.688 | I132: 0.49 | K132: 477 | L132: 0.01199999495 | M132: -0.002000000296 | N132: 0.008999989506
C133: 478 | D133: 0.04 | E133: 0.2 | F133: 0.378 | G133: 0.51 | H133: 0.69 | I133: 0.49 | K133: 478 | L133: 0.0130000094 | M133: -0.002000004138 | N133: 0.009000001347
C134: 479 | D134: 0.04 | E134: 0.2 | F134: 0.38 | G134: 0.51 | H134: 0.69 | I134: 0.494 | K134: 479 | L134: 0.01400000806 | M134: -0.0009999898093 | N134: 0.009999994823
C135: 480 | D135: 0.04 | E135: 0.2 | F135: 0.38 | G135: 0.518 | H135: 0.69 | I135: 0.5 | K135: 480 | L135: 0.0129999964 | M135: -0.0009999938347 | N135: 0.009999998209
C136: 481 | D136: 0.04 | E136: 0.2 | F136: 0.38 | G136: 0.52 | H136: 0.694 | I136: 0.5 | K136: 481 | L136: 0.01300000021 | M136: -0.001999993964 | N136: 0.009999992006
C137: 482 | D137: 0.04 | E137: 0.2 | F137: 0.38 | G137: 0.52 | H137: 0.7 | I137: 0.5 | K137: 482 | L137: 0.01300000946 | M137: -0.002000001416 | N137: 0.009000001696
C138: 483 | D138: 0.04 | E138: 0.2 | F138: 0.38 | G138: 0.52 | H138: 0.7 | I138: 0.5 | K138: 483 | L138: 0.01299999663 | M138: -0.002999991761 | N138: 0.009000002719
C139: 484 | D139: 0.04 | E139: 0.2 | F139: 0.38 | G139: 0.52 | H139: 0.7 | I139: 0.5 | K139: 484 | L139: 0.01200000516 | M139: -0.003000001406 | N139: 0.007999999439
C140: 485 | D140: 0.032 | E140: 0.2 | F140: 0.38 | G140: 0.52 | H140: 0.7 | I140: 0.5 | K140: 485 | L140: 0.01299999673 | M140: -0.001999996127 | N140: 0.00800000111
C141: 486 | D141: 0.03 | E141: 0.2 | F141: 0.38 | G141: 0.52 | H141: 0.7 | I141: 0.5 | K141: 486 | L141: 0.01199999907 | M141: -0.001999999986 | N141: 0.008999998918
C142: 487 | D142: 0.03 | E142: 0.2 | F142: 0.38 | G142: 0.52 | H142: 0.7 | I142: 0.5 | K142: 487 | L142: 0.01100000368 | M142: -0.002999992523 | N142: 0.006999990085
C143: 488 | D143: 0.03 | E143: 0.2 | F143: 0.38 | G143: 0.52 | H143: 0.7 | I143: 0.5 | K143: 488 | L143: 0.01100000635 | M143: -0.003999993603 | N143: 0.007999998726
C144: 489 | D144: 0.03 | E144: 0.2 | F144: 0.38 | G144: 0.524 | H144: 0.71 | I144: 0.51 | K144: 489 | L144: 0.01199999954 | M144: -0.00300000254 | N144: 0.007999989544
C145: 490 | D145: 0.03 | E145: 0.2 | F145: 0.384 | G145: 0.53 | H145: 0.71 | I145: 0.51 | K145: 490 | L145: 0.01200000096 | M145: -0.003000000096 | N145: 0.007999996224
C146: 491 | D146: 0.03 | E146: 0.2 | F146: 0.39 | G146: 0.53 | H146: 0.71 | I146: 0.51 | K146: 491 | L146: 0.01100000448 | M146: -0.002999993688 | N146: 0.007999990513
C147: 492 | D147: 0.03 | E147: 0.2 | F147: 0.39 | G147: 0.53 | H147: 0.71 | I147: 0.51 | K147: 492 | L147: 0.01199999924 | M147: -0.002999997037 | N147: 0.008999995556
C148: 493 | D148: 0.03 | E148: 0.2 | F148: 0.39 | G148: 0.53 | H148: 0.71 | I148: 0.51 | K148: 493 | L148: 0.01100000519 | M148: -0.003000000751 | N148: 0.00800000302
C149: 494 | D149: 0.03 | E149: 0.2 | F149: 0.39 | G149: 0.53 | H149: 0.716 | I149: 0.51 | K149: 494 | L149: 0.01100000664 | M149: -0.002999991948 | N149: 0.007000002226
C150: 495 | D150: 0.03 | E150: 0.2 | F150: 0.39 | G150: 0.538 | H150: 0.72 | I150: 0.516 | K150: 495 | L150: 0.01100000525 | M150: -0.002999998204 | N150: 0.006999998516
C151: 496 | D151: 0.03 | E151: 0.21 | F151: 0.39 | G151: 0.54 | H151: 0.72 | I151: 0.52 | K151: 496 | L151: 0.01099999846 | M151: -0.002999994902 | N151: 0.006999999911
C152: 497 | D152: 0.03 | E152: 0.21 | F152: 0.39 | G152: 0.54 | H152: 0.722 | I152: 0.52 | K152: 497 | L152: 0.01099999967 | M152: -0.002999999435 | N152: 0.006999997537
C153: 498 | D153: 0.03 | E153: 0.21 | F153: 0.396 | G153: 0.54 | H153: 0.73 | I153: 0.52 | K153: 498 | L153: 0.01099999678 | M153: -0.002999997336 | N153: 0.00700000042
C154: 499 | D154: 0.03 | E154: 0.21 | F154: 0.4 | G154: 0.54 | H154: 0.73 | I154: 0.526 | K154: 499 | L154: 0.01100000069 | M154: -0.003999999995 | N154: 0.008000000036
C155: 500 | D155: 0.03 | E155: 0.21 | F155: 0.4 | G155: 0.55 | H155: 0.73 | I155: 0.53 | K155: 500 | L155: 0.01100000803 | M155: -0.001999990532 | N155: 0.006999993664
C156: 501 | D156: 0.03 | E156: 0.21 | F156: 0.4 | G156: 0.55 | H156: 0.738 | I156: 0.53 | K156: 501 | L156: 0.01100000613 | M156: -0.001999994404 | N156: 0.007999996529
C157: 502 | D157: 0.03 | E157: 0.21 | F157: 0.4 | G157: 0.55 | H157: 0.74 | I157: 0.53 | K157: 502 | L157: 0.009999999114 | M157: -0.002999998622 | N157: 0.007999992708
C158: 503 | D158: 0.03 | E158: 0.21 | F158: 0.404 | G158: 0.558 | H158: 0.74 | I158: 0.538 | K158: 503 | L158: 0.01100000889 | M158: -0.002999989505 | N158: 0.007000000096
C159: 504 | D159: 0.03 | E159: 0.21 | F159: 0.41 | G159: 0.56 | H159: 0.7475 | I159: 0.54 | K159: 504 | L159: 0.01000000665 | M159: -0.002999990502 | N159: 0.007000000307
C160: 505 | D160: 0.03 | E160: 0.21 | F160: 0.41 | G160: 0.56 | H160: 0.75 | I160: 0.54 | K160: 505 | L160: 0.0099999987 | M160: -0.001999990053 | N160: 0.006000000762
C161: 506 | D161: 0.03 | E161: 0.21 | F161: 0.41 | G161: 0.56 | H161: 0.75 | I161: 0.54 | K161: 506 | L161: 0.008000007692 | M161: -0.00399999973 | N161: 0.005000002129
C162: 507 | D162: 0.03 | E162: 0.21 | F162: 0.41 | G162: 0.564 | H162: 0.75 | I162: 0.546 | K162: 507 | L162: 0.008000003131 | M162: -0.003999996273 | N162: 0.004999996426
C163: 508 | D163: 0.03 | E163: 0.21 | F163: 0.41 | G163: 0.57 | H163: 0.75 | I163: 0.55 | K163: 508 | L163: 0.009000007213 | M163: -0.003000003079 | N163: 0.005000004001
C164: 509 | D164: 0.03 | E164: 0.21 | F164: 0.41 | G164: 0.57 | H164: 0.752 | I164: 0.55 | K164: 509 | L164: 0.009000005694 | M164: -0.003999994071 | N164: 0.004999995216
C165: 510 | D165: 0.03 | E165: 0.21 | F165: 0.41 | G165: 0.57 | H165: 0.76 | I165: 0.55 | K165: 510 | L165: 0.007999997057 | M165: -0.004999997151 | N165: 0.006000001623
C166: 511 | D166: 0.03 | E166: 0.21 | F166: 0.41 | G166: 0.57 | H166: 0.76 | I166: 0.55 | K166: 511 | L166: 0.007000004249 | M166: -0.003999996104 | N166: 0.004999995599
C167: 512 | D167: 0.03 | E167: 0.21 | F167: 0.41 | G167: 0.57 | H167: 0.758 | I167: 0.55 | K167: 512 | L167: 0.007000006316 | M167: -0.004000000391 | N167: 0.005000002589
C168: 513 | D168: 0.03 | E168: 0.21 | F168: 0.41 | G168: 0.57 | H168: 0.75 | I168: 0.55 | K168: 513 | L168: 0.006999998861 | M168: -0.003999993715 | N168: 0.004999998851
C169: 514 | D169: 0.03 | E169: 0.21 | F169: 0.41 | G169: 0.562 | H169: 0.75 | I169: 0.544 | K169: 514 | L169: 0.007000001891 | M169: -0.003999993791 | N169: 0.0049999981
C170: 515 | D170: 0.03 | E170: 0.21 | F170: 0.41 | G170: 0.56 | H170: 0.75 | I170: 0.54 | K170: 515 | L170: 0.006000003341 | M170: -0.003999991752 | N170: 0.002999999155
C171: 516 | D171: 0.03 | E171: 0.21 | F171: 0.404 | G171: 0.56 | H171: 0.742 | I171: 0.54 | K171: 516 | L171: 0.006000005932 | M171: -0.004999991506 | N171: 0.002999990425
C172: 517 | D172: 0.03 | E172: 0.21 | F172: 0.4 | G172: 0.55 | H172: 0.738 | I172: 0.534 | K172: 517 | L172: 0.006000007997 | M172: -0.004999992662 | N172: 0.003999999937
C173: 518 | D173: 0.03 | E173: 0.206 | F173: 0.4 | G173: 0.55 | H173: 0.73 | I173: 0.53 | K173: 518 | L173: 0.006000000455 | M173: -0.004999997085 | N173: 0.004000001364
C174: 519 | D174: 0.03 | E174: 0.2 | F174: 0.392 | G174: 0.54 | H174: 0.722 | I174: 0.524 | K174: 519 | L174: 0.003999998867 | M174: -0.005999995979 | N174: 0.003000003016
C175: 520 | D175: 0.03 | E175: 0.2 | F175: 0.39 | G175: 0.534 | H175: 0.712 | I175: 0.518 | K175: 520 | L175: 0.004000004177 | M175: -0.005999991612 | N175: 0.001999997059
C176: 521 | D176: 0.03 | E176: 0.198 | F176: 0.38 | G176: 0.526 | H176: 0.702 | I176: 0.51 | K176: 521 | L176: 0.003999997401 | M176: -0.006999993336 | N176: 0.002999996185
C177: 522 | D177: 0.028 | E177: 0.19 | F177: 0.376 | G177: 0.518 | H177: 0.69 | I177: 0.5 | K177: 522 | L177: 0.00399999914 | M177: -0.00499999445 | N177: 0.002999992108
C178: 523 | D178: 0.02 | E178: 0.19 | F178: 0.368 | G178: 0.508 | H178: 0.678 | I178: 0.49 | K178: 523 | L178: 0.003000001102 | M178: -0.004999997986 | N178: 0.003000003992
C179: 524 | D179: 0.02 | E179: 0.184 | F179: 0.36 | G179: 0.496 | H179: 0.666 | I179: 0.48 | K179: 524 | L179: 0.003999996527 | M179: -0.004000000172 | N179: 0.002999996041
C180: 525 | D180: 0.02 | E180: 0.18 | F180: 0.352 | G180: 0.486 | H180: 0.65 | I180: 0.47 | K180: 525 | L180: 0.004000003569 | M180: -0.005000001219 | N180: 0.003000002297
C181: 526 | D181: 0.02 | E181: 0.178 | F181: 0.346 | G181: 0.476 | H181: 0.636 | I181: 0.46 | K181: 526 | L181: 0.004000001941 | M181: -0.005000001286 | N181: 0.003000003531
C182: 527 | D182: 0.02 | E182: 0.17 | F182: 0.336 | G182: 0.464 | H182: 0.62 | I182: 0.446 | K182: 527 | L182: 0.002999996142 | M182: -0.007000003117 | N182: 0.002000003573
C183: 528 | D183: 0.02 | E183: 0.17 | F183: 0.328 | G183: 0.45 | H183: 0.604 | I183: 0.434 | K183: 528 | L183: 0.00399999878 | M183: -0.005999991574 | N183: 0.002999994303
C184: 529 | D184: 0.02 | E184: 0.16 | F184: 0.318 | G184: 0.438 | H184: 0.588 | I184: 0.424 | K184: 529 | L184: 0.004000000982 | M184: -0.00599999816 | N184: 0.003000001791
C185: 530 | D185: 0.02 | E185: 0.16 | F185: 0.308 | G185: 0.426 | H185: 0.57 | I185: 0.41 | K185: 530 | L185: 0.002999999325 | M185: -0.007000000131 | N185: 0.0009999913123
C186: 531 | D186: 0.02 | E186: 0.15 | F186: 0.298 | G186: 0.41 | H186: 0.552 | I186: 0.396 | K186: 531 | L186: 0.002000006541 | M186: -0.005999989733 | N186: 0.001999999295
C187: 532 | D187: 0.02 | E187: 0.148 | F187: 0.286 | G187: 0.396 | H187: 0.534 | I187: 0.384 | K187: 532 | L187: 0.00199999852 | M187: -0.007000002225 | N187: 0.00099999642
C188: 533 | D188: 0.02 | E188: 0.14 | F188: 0.278 | G188: 0.382 | H188: 0.514 | I188: 0.368 | K188: 533 | L188: 0.003000005552 | M188: -0.006000002424 | N188: 0.002000002213
C189: 534 | D189: 0.02 | E189: 0.136 | F189: 0.266 | G189: 0.366 | H189: 0.496 | I189: 0.354 | K189: 534 | L189: 0.005000006876 | M189: -0.004999990599 | N189: 0.004000003502
C190: 535 | D190: 0.02 | E190: 0.13 | F190: 0.256 | G190: 0.352 | H190: 0.476 | I190: 0.338 | K190: 535 | L190: 0.003000005251 | M190: -0.006999995965 | N190: 0.002999993626
C191: 536 | D191: 0.02 | E191: 0.126 | F191: 0.244 | G191: 0.338 | H191: 0.456 | I191: 0.326 | K191: 536 | L191: 0.002000003772 | M191: -0.006999998551 | N191: 0.0009999965437
C192: 537 | D192: 0.02 | E192: 0.12 | F192: 0.234 | G192: 0.324 | H192: 0.436 | I192: 0.312 | K192: 537 | L192: 0.001999996842 | M192: -0.007000000398 | N192: 0.0009999958778
C193: 538 | D193: 0.02 | E193: 0.112 | F193: 0.224 | G193: 0.308 | H193: 0.418 | I193: 0.296 | K193: 538 | L193: 0.001000008486 | M193: -0.007999990964 | N193: 0.0009999976729
C194: 539 | D194: 0.02 | E194: 0.11 | F194: 0.212 | G194: 0.294 | H194: 0.4 | I194: 0.282 | K194: 539 | L194: 0.001000003348 | M194: -0.006999997704 | N194: 7.923245809e-10
C195: 540 | D195: 0.02 | E195: 0.102 | F195: 0.202 | G195: 0.28 | H195: 0.38 | I195: 0.268 | K195: 540 | L195: -1.124102984e-09 | M195: -0.006999994912 | N195: 0.001000000988
C196: 541 | D196: 0.02 | E196: 0.1 | F196: 0.192 | G196: 0.264 | H196: 0.362 | I196: 0.256 | K196: 541 | L196: 0.001000007897 | M196: -0.007000002708 | N196: 0.001999993243
C197: 542 | D197: 0.02 | E197: 0.092 | F197: 0.182 | G197: 0.25 | H197: 0.344 | I197: 0.242 | K197: 542 | L197: 0.001000008845 | M197: -0.006999989602 | N197: 0.0009999906033
C198: 543 | D198: 0.02 | E198: 0.08833333333 | F198: 0.1716666667 | G198: 0.2366666667 | H198: 0.325 | I198: 0.2266666667 | K198: 543 | L198: -0.0009999997145 | M198: -0.007999999535 | N198: -5.134409979e-09
C199: 544 | D199: 0.02 | E199: 0.08 | F199: 0.162 | G199: 0.222 | H199: 0.306 | I199: 0.214 | K199: 544 | L199: -0.001000001045 | M199: -0.008999998587 | N199: -0.001000004011
C200: 545 | D200: 0.02 | E200: 0.08 | F200: 0.152 | G200: 0.212 | H200: 0.29 | I200: 0.202 | K200: 545 | L200: 7.253924864e-09 | M200: -0.007999989807 | N200: -1.004758913e-08
... 205 more rows
